{"text_format":"2","workbook":"xlsx","n_sheets":4,"sheets":["Programación de pagos","INSTRUCTIVO","LISTADOS","CODI_DANE"],"not_rendered":{"charts":0,"images":8,"macros":0,"external_links":0,"defined_names":39,"comments":1,"pivot_tables":0},"unopened":[],"bounds":{"document_bytes":16777216,"sheet_cells":100000,"run_cost":"one","rows_first":2000,"rows_last":500,"rows_between":2000,"halvings":0,"cell_chars":16384,"cell_head_chars":4096},"cells_cut":0,"cells_raw":0,"read":"whole","date_system":"1900"}

{"sheet":"Programación de pagos","index":0,"n_rows":42,"n_cols":38,"rows_kept":42,"cut":false,"hidden":false,"merged":[[19,37,20,37],[29,35,30,35],[29,36,30,36],[29,37,30,37],[40,11,40,15],[29,23,29,26],[29,27,29,30],[35,7,35,9],[31,3,31,4],[41,0,41,11],[19,35,20,35],[19,36,20,36],[19,0,20,0],[19,5,20,5],[19,6,20,6],[19,7,20,7],[38,0,39,0],[34,6,34,8],[29,9,30,9],[29,3,30,4],[38,1,39,10],[29,1,30,2],[4,0,4,10],[6,5,9,10],[12,9,15,10],[11,9,11,10],[5,5,5,10],[11,5,11,8],[10,5,10,10],[12,5,15,8],[5,1,5,4],[6,1,6,4],[7,1,7,4],[8,0,8,4],[29,0,30,0],[29,5,30,5],[29,6,30,6],[29,7,30,7],[29,8,30,8],[25,31,25,34],[24,6,24,8],[25,7,25,9],[19,11,19,14],[19,15,19,18],[19,31,19,34],[19,8,20,8],[19,9,20,9],[19,23,19,26],[25,23,25,26],[19,27,19,30],[25,27,25,30],[25,11,25,14],[25,15,25,18],[19,19,19,22],[25,19,25,22],[29,31,29,34],[35,11,35,14],[35,15,35,18],[35,31,35,34],[29,11,29,14],[35,23,35,26],[35,27,35,30],[29,19,29,22],[35,19,35,22],[29,15,29,18],[32,3,32,4],[33,3,33,4],[31,1,31,2],[32,1,32,2],[33,1,33,2],[9,1,9,4],[10,1,10,4],[11,1,11,4],[12,1,12,4],[13,1,13,4],[14,1,14,4],[15,1,15,4],[16,5,16,7],[18,0,18,9],[28,0,28,9],[22,1,22,2],[22,3,22,4],[19,3,20,4],[21,3,21,4],[23,3,23,4],[19,1,20,2],[21,1,21,2],[23,1,23,2]]}
[]
[null,"PATRIMONIO AUTÓNOMO FIA"]
[null,"PROGRAMACIÓN DE PAGOS "]
[]
["PROGRAMACIÓN DE PAGOS"]
["PAP-PDA","SANTANDER",null,null,null,"OBJETO DEL CONTRATO"]
["Fecha","2019-05-08"]
["No. de Contrato"]
["DATOS DEL CONTRATISTA"]
["Identificación "]
["Nombre Completo",{"$nulls":4},"FORMATO DE PAGO"]
["Valor contrato inicial",{"$nulls":4},"CONTRATO INICIAL",null,null,null,"ADICIÓN AL CONTRATO"]
["Valor adición 1"]
["Valor adición 2"]
["Valor adición 3"]
["VALOR TOTAL DEL CONTRATO",{"$f":"SUM(B12:E15)","v":0}]
[{"$nulls":5},"PORCENTAJE DEL ANTICIPO"]
[]
["DETALLE CONTRATO INICIAL"]
["Departamento o municipio","Cod DANE",null,"No CDR´s",null,"Fecha Expedición CDR","Valor CDR´s  por fuente","Fuente","Codigo Fuente","Valor contrato por  fuente ","MES - AÑO","2018-12-01",null,null,null,"2019-01-01",null,null,null,"2019-02-01",null,null,null,"2019-03-01",null,null,null,"2019-04-01",null,null,null,"2019-05-01",null,null,null,"Total pagos realizados ","Total amortización anticipos","Saldo amortización anticipos"]
[{"$nulls":10},"ANTICIPO","ACTA No 1","Amortización Anticipo","Otros descuentos","NETO","ACTA No 2","Amortización Anticipo","Otros descuentos","NETO","ACTA No 3","Amortización Anticipo","Otros descuentos","NETO","ACTA No 4","Amortización Anticipo","Otros descuentos","NETO","ACTA No 5","Amortización Anticipo","Otros descuentos","NETO","ACTA No 6","Amortización Anticipo","Otros descuentos","NETO"]
[null,{"$f":"IFERROR(VLOOKUP(A22,CODI_DANE!$B$2:$C$1155,2,0),0)","v":0},{"$nulls":5},"SGP",{"$f":"IFERROR(VLOOKUP(H22,CODI_DANE!$A$1161:$B$1172,2,0),0)","v":103},500000000,150000000,125000000,75000000,null,{"$f":"L22-M22-N22","v":50000000},80000000,75000000,null,{"$f":"P22-Q22-R22","v":5000000},null,0,null,{"$f":"T22-U22-V22","v":0},null,null,null,{"$f":"X22-Y22-Z22","v":0},null,null,null,{"$f":"AB22-AC22-AD22","v":0},null,null,null,{"$f":"AF22-AG22-AH22","v":0},{"$f":"K22+O22+S22+AI22+N22+R22+AH22","v":205000000},{"$f":"M22+Q22+AG22","v":150000000},{"$f":"K22-AK22","v":0}]
[null,{"$f":"IFERROR(VLOOKUP(A23,CODI_DANE!$B$2:$C$1155,2,0),0)","v":0},{"$nulls":5},"RECURSOS DE LA NACION /AUDIENCIAS PUBLICAS",{"$f":"IFERROR(VLOOKUP(H23,CODI_DANE!$A$1161:$B$1172,2,0),0)","v":105},250000000,100000000,50000000,25000000,null,{"$f":"L23-M23-N23","v":25000000},100000000,25000000,null,{"$f":"P23-Q23-R23","v":75000000},null,null,null,{"$f":"T23-U23-V23","v":0},null,null,null,{"$f":"X23-Y23-Z23","v":0},null,null,null,{"$f":"AB23-AC23-AD23","v":0},null,null,null,{"$f":"AF23-AG23-AH23","v":0},{"$f":"K23+O23+S23+AI23+N23+R23+AH23","v":200000000},{"$f":"M23+Q23+AG23","v":50000000},{"$f":"K23-AK23","v":50000000}]
[null,{"$f":"IFERROR(VLOOKUP(A24,CODI_DANE!$B$2:$C$1155,2,0),0)","v":0},{"$nulls":5},"REGALIAS -FONDO COMPENSACION REGIONAL ",{"$f":"IFERROR(VLOOKUP(H24,CODI_DANE!$A$1161:$B$1172,2,0),0)","v":118},{"$nulls":5},{"$f":"L24-M24-N24","v":0},null,null,null,{"$f":"P24-Q24-R24","v":0},null,null,null,{"$f":"T24-U24-V24","v":0},null,null,null,{"$f":"X24-Y24-Z24","v":0},null,null,null,{"$f":"AB24-AC24-AD24","v":0},null,null,null,{"$f":"AF24-AG24-AH24","v":0},{"$f":"K24+O24+S24+AI24+N24+R24+AH24","v":0},{"$f":"M24+Q24+AG24","v":0},{"$f":"K24-AK24","v":0}]
[{"$nulls":6},"TOTAL CONTRATO INICIAL",null,null,{"$f":"SUM(J22:J24)","v":750000000},{"$f":"SUM(K22:K24)","v":250000000},{"$f":"SUM(L22:L24)","v":175000000},{"$f":"SUM(M22:M24)","v":100000000},{"$f":"SUM(N22:N24)","v":0},75000000,{"$f":"SUM(P22:P24)","v":180000000},{"$f":"SUM(Q22:Q24)","v":100000000},{"$f":"SUM(R22:R24)","v":0},80000000,{"$f":"SUM(T22:T24)","v":0},{"$f":"SUM(U22:U24)","v":0},{"$f":"SUM(V22:V24)","v":0},0,{"$f":"SUM(X22:X24)","v":0},{"$f":"SUM(Y22:Y24)","v":0},{"$f":"SUM(Z22:Z24)","v":0},0,{"$f":"SUM(AB22:AB24)","v":0},{"$f":"SUM(AC22:AC24)","v":0},{"$f":"SUM(AD22:AD24)","v":0},0,{"$f":"SUM(AF22:AF24)","v":0},{"$f":"SUM(AG22:AG24)","v":0},{"$f":"SUM(AH22:AH24)","v":0},0,{"$f":"SUM(AJ22:AJ24)","v":405000000},{"$f":"SUM(AK22:AK24)","v":200000000},{"$f":"SUM(AL22:AL24)","v":50000000}]
[{"$nulls":7},"SALDO CONTRATO",null,null,{"$f":"J25-K25","v":500000000},{"$f":"K26-O25-N25","v":425000000},{"$f":"L25-M25","v":75000000},100000000,-75000000,{"$f":"L26-S25-R25","v":345000000},{"$f":"P25-Q25","v":80000000},{"$f":"Q25-R25","v":100000000},{"$f":"R25-S25","v":-80000000},{"$f":"P26-W25-V25","v":345000000},{"$f":"T25-U25","v":0},{"$f":"U25-V25","v":0},{"$f":"V25-W25","v":0},{"$f":"T26-AA25-Z25","v":345000000},{"$f":"X25-Y25","v":0},{"$f":"Y25-Z25","v":0},{"$f":"Z25-AA25","v":0},{"$f":"X26-AE25-AD25","v":345000000},{"$f":"AB25-AC25","v":0},{"$f":"AC25-AD25","v":0},{"$f":"AD25-AE25","v":0},{"$f":"AB26-AI25-AH25","v":345000000},{"$f":"AF25-AG25","v":0},{"$f":"AG25-AH25","v":0},{"$f":"AH25-AI25","v":0}]
[]
[]
["DETALLE ADICIONES AL CONTRATO"]
["Departamento o municipio","Cod DANE",null,"No CDR´s",null,"Fecha Expedición CDR","Valor CDR´s  por fuente","Fuente","Codigo Fuente","Valor contrato por  fuente ","MES - AÑO","2018-12-01",null,null,null,"2019-01-01",null,null,null,"2019-02-01",null,null,null,"2019-03-01",null,null,null,"2019-04-01",null,null,null,"2019-05-01",null,null,null,"Total pagos realizados ","Total amortización anticipos","Saldo amortización anticipos"]
[{"$nulls":10},"ANTICIPO","ACTA No 1","Amortización Anticipo","Otros descuentos","NETO","ACTA No 2","Amortización Anticipo","Otros descuentos","NETO","ACTA No 3","Amortización Anticipo","Otros descuentos","NETO","ACTA No 4","Amortización Anticipo","Otros descuentos","NETO","ACTA No 5","Amortización Anticipo","Otros descuentos","NETO","ACTA No 6","Amortización Anticipo","Otros descuentos","NETO"]
[null,{"$f":"IFERROR(VLOOKUP(A32,CODI_DANE!$B$2:$C$1155,2,0),0)","v":0},{"$nulls":5},"RECURSOS CRÉDITO",{"$f":"IFERROR(VLOOKUP(H32,CODI_DANE!$A$1161:$B$1172,2,0),0)","v":500},{"$nulls":5},{"$f":"L32-M32-N32","v":0},null,null,null,{"$f":"P32-Q32-R32","v":0},null,null,null,{"$f":"T32-U32-V32","v":0},null,null,null,{"$f":"X32-Y32-Z32","v":0},null,null,null,{"$f":"AB32-AC32-AD32","v":0},null,null,null,{"$f":"AF32-AG32-AH32","v":0},{"$f":"K32+O32+S32+AI32+N32+R32+AH32","v":0},{"$f":"M32+Q32+AG32","v":0},{"$f":"K32-AK32","v":0}]
[null,{"$f":"IFERROR(VLOOKUP(A33,CODI_DANE!$B$2:$C$1155,2,0),0)","v":0},{"$nulls":5},"RECURSOS BID NACION",{"$f":"IFERROR(VLOOKUP(H33,CODI_DANE!$A$1161:$B$1172,2,0),0)","v":405},{"$nulls":5},{"$f":"L33-M33-N33","v":0},null,null,null,{"$f":"P33-Q33-R33","v":0},null,null,null,{"$f":"T33-U33-V33","v":0},null,null,null,{"$f":"X33-Y33-Z33","v":0},null,null,null,{"$f":"AB33-AC33-AD33","v":0},null,null,null,{"$f":"AF33-AG33-AH33","v":0},{"$f":"K33+O33+S33+AI33+N33+R33+AH33","v":0},{"$f":"M33+Q33+AG33","v":0},{"$f":"K33-AK33","v":0}]
[null,{"$f":"IFERROR(VLOOKUP(A34,CODI_DANE!$B$2:$C$1155,2,0),0)","v":0},{"$nulls":5},"RECURSOS NACION ESTRATEGICOS",{"$f":"IFERROR(VLOOKUP(H34,CODI_DANE!$A$1161:$B$1172,2,0),0)","v":119},{"$nulls":5},0,null,null,null,0,null,null,null,0,null,null,null,0,null,null,null,0,null,null,null,0,{"$f":"K34+O34+S34+AI34+N34+R34+AH34","v":0},0,{"$f":"K34-AK34","v":0}]
[{"$nulls":6},"TOTAL CONTRATO ADICIONAL",null,null,{"$f":"SUM(J32:J34)","v":0},{"$f":"SUM(K32:K34)","v":0},{"$f":"SUM(L32:L34)","v":0},0,0,0,{"$f":"SUM(P32:P34)","v":0},0,0,0,{"$f":"SUM(T32:T34)","v":0},0,0,0,{"$f":"SUM(X32:X34)","v":0},0,0,0,{"$f":"SUM(AB32:AB34)","v":0},0,0,0,{"$f":"SUM(AF32:AF34)","v":0},0,0,0,{"$f":"SUM(AJ32:AJ34)","v":0},0,0]
[{"$nulls":7},"SALDO CONTRATO",null,null,{"$f":"J35-K35","v":0},{"$f":"K36-O35-N35","v":0},{"$f":"L35-M35","v":0},{"$f":"M35-N35","v":0},{"$f":"N35-O35","v":0},{"$f":"O36-S35-R35","v":0},{"$f":"P35-Q35","v":0},{"$f":"Q35-R35","v":0},{"$f":"R35-S35","v":0},{"$f":"O36-W35-V35","v":0},{"$f":"T35-U35","v":0},{"$f":"U35-V35","v":0},{"$f":"V35-W35","v":0},{"$f":"S36-AA35-Z35","v":0},{"$f":"X35-Y35","v":0},{"$f":"Y35-Z35","v":0},{"$f":"Z35-AA35","v":0},{"$f":"W36-AE35-AD35","v":0},{"$f":"AB35-AC35","v":0},{"$f":"AC35-AD35","v":0},{"$f":"AD35-AE35","v":0},{"$f":"S36-AI35-AH35","v":0},{"$f":"AF35-AG35","v":0},{"$f":"AG35-AH35","v":0},{"$f":"AH35-AI35","v":0}]
[]
[]
["OBSERVACIONES"]
[]
["Elaboró:\nResponsable Unidad Gestora","_____________________________________________",null,null,null,"____________________"]
["Nota: Imprimir completo, legible al 50% y siempre con la información del contrato (encabezado)."]

{"sheet":"INSTRUCTIVO","index":1,"n_rows":47,"n_cols":10,"rows_kept":47,"cut":false,"hidden":false,"merged":[[54,3,54,4],[2,6,2,9],[3,6,3,9],[4,6,4,9],[6,6,6,10],[7,6,7,10],[8,6,8,10],[46,4,48,7],[46,8,48,8],[28,0,29,4],[28,6,30,8],[9,6,9,10],[38,4,38,8],[46,2,48,3]]}
[]
[]
[{"$nulls":6},"Despliegue la lista y escoja el PDA (Departamento)."]
[{"$nulls":6},"Fecha de actualización del plan de pagos. (Fecha actual en la cual se esta presentando el pago para trámite)"]
[{"$nulls":6},"Número de contrato"]
[]
[{"$nulls":6},"Número de Nit o documento de identificación de contratista"]
[{"$nulls":6},"Nombre completo de contratista"]
[{"$nulls":6},"Valor en números contrato inicial "]
[{"$nulls":6},"Valor en números contrato de adición"]
[]
[]
[{"$nulls":6},"La suma de contrato inicila mas adiciones."]
[]
[]
[]
[]
[{"$nulls":9},"Digitar el objeto del contrato a pagar, tal como se evidencia en el documento contractual."]
{"$rows_empty":10}
["Digitar  la cláusula y el detalle de forma de pago conforme a lo establecido en el contrato inicial.",{"$nulls":5},"Digitar el detalle de forma de pago conforme a lo establecido en el contrato de adiciòn, en los casos que aplique"]
{"$rows_empty":9}
[{"$nulls":4},"Se debe generar un registro por cada CDR y fuente se utilice"]
{"$rows_empty":7}
[null,null,"Departamento o municipio que corresponda siempre debe incluir nombre y codigo DANE",null,"Digite el número de CDR expedido para amparar el contrato, fecha (el mes siempre debe venir en letras) y valor ",null,null,null,"Seleccionar fuente de acuerdo a CDR"]

{"sheet":"LISTADOS","index":2,"n_rows":126,"n_cols":34,"rows_kept":126,"cut":false,"hidden":true,"merged":[]}
["DEPARTAMENTO","AMAZONAS","ANTIOQUIA","ARAUCA","ATLÁNTICO","BOLÍVAR","BOYACÁ","CALDAS","CAQUETÁ","CASANARE","CAUCA","CESAR","CHOCÓ","CÓRDOBA","CUNDINAMARCA","GUAINÍA","GUAVIARE","HUILA","LA GUAJIRA","MAGDALENA","META","NARIÑO","PDA_NEIVA","NORTE_DE_SANTANDER","PUTUMAYO","QUINDIO","RISARALDA","SAN_ANDRÉS","SANTANDER","SUCRE","TOLIMA","VALLE_DEL_CAUCA","VAUPÉS","VICHADA"]
["AMAZONAS","EL ENCANTO","ABEJORRAL","ARAUCA - DEPARTAMENTO","ATLANTICO","ACHI","ALMEIDA","AGUADAS","ALBANIA - CAQUETA","AGUAZUL","ALMAGUER","AGUACHICA","ACANDI","AYAPEL","AGUA DE DIOS","BARRANCO MINAS","CALAMAR - GUAVIARE","ACEVEDO","ALBANIA - LA GUAJIRA","ALGARROBO","ACACIAS","ALBAN - NARIÑO","NEIVA","ABREGO","COLON - PUTUMAYO","ARMENIA - QUINDIO","APIA","PROVIDENCIA - SAN ANDRES","AGUADA","BUENAVISTA","ALPUJARRA","ALCALA","CARURU","CUMARIBO"]
["ANTIOQUIA","LA CHORRERA","ABRIAQUI","ARAUCA - MUNICIPIO","BARANOA","ALTOS DEL ROSARIO","AQUITANIA","ANSERMA","BELEN DE LOS ANDAQUIES","CASANARE","ARGELIA - CAUCA","AGUSTIN CODAZZI","ALTO BAUDO","BUENAVISTA - CORDOBA","ALBAN - CUNDINAMARCA","CACAHUAL","EL RETORNO","AGRADO","BARRANCAS","ARACATACA","BARRANCA DE UPIA","ALDANA",null,"ARBOLEDAS","LEGUIZAMO","BUENAVISTA - QUINDIO","BALBOA - RISARALDA","SAN ANDRES - MUNICIPIO","ALBANIA - SANTANDER","CAIMITO","ALVARADO","ANDALUCIA","MITU","LA PRIMAVERA"]
["ARAUCA","LA PEDRERA","ALEJANDRIA","ARAUQUITA","BARRANQUILLA","ARENAL","ARCABUCO","ARANZAZU","CAQUETA","CHAMEZA","BALBOA - CAUCA","ASTREA","ATRATO","CANALETE","ANAPOIMA","GUAINIA","GUAVIARE","AIPE","DIBULLA","ARIGUANI","CABUYARO","ANCUYA",null,"BOCHALEMA","MOCOA","CALARCA","BELEN DE UMBRIA","SAN ANDRES - DPTO.","ARATOCA","CHALAN","AMBALEMA","ANSERMANUEVO","PACOA","PUERTO CARREÑO"]
["ATLÁNTICO","LA VICTORIA - AMAZONAS","AMAGA","CRAVO NORTE","CAMPO DE LA CRUZ","ARJONA","BELEN - BOYACA","BELALCAZAR","CARTAGENA DEL CHAIRA","HATO COROZAL","BOLIVAR - CAUCA","BECERRIL","BAGADO","CERETE","ANOLAIMA","INIRIDA","MIRAFLORES - GUAVIARE","ALGECIRAS","DISTRACCION","CERRO SAN ANTONIO","CASTILLA LA NUEVA","ARBOLEDA",null,"BUCARASICA","ORITO","CIRCASIA","DOSQUEBRADAS",null,"BARBOSA - SANTANDER","COLOSO","ANZOATEGUI","ARGELIA","PAPUNAUA","SANTA ROSALIA"]
["BOLÍVAR","LETICIA","AMALFI","FORTUL","CANDELARIA - ATLANTICO","ARROYOHONDO","BERBEO","CALDAS -DPTO.","CURILLO","LA SALINA","BUENOS AIRES","BOSCONIA","BAHIA SOLANO","CHIMA - CORDOBA","APULO","LA GUADALUPE","SAN JOSE DEL GUAVIARE","ALTAMIRA","EL MOLINO","CHIBOLO","CUBARRAL","BARBACOAS",null,"CACHIRA","PUERTO ASIS","CORDOBA - QUINDIO","GUATICA",null,"BARICHARA","COROZAL","ARMERO","BOLIVAR - VALLE DEL CAUCA","TARAIRA","SANTA ROSALÍA"]
["BOYACÁ","MIRITI - PARANA","ANDES","PUERTO RONDON","GALAPA","BARRANCO DE LOBA","BETEITIVA","CHINCHINA","EL DONCELLO","MANI","CAJIBIO","CESAR","BAJO BAUDO","CHINU","ARBELAEZ","MAPIRIPANA",null,"BARAYA","FONSECA","CIENAGA","CUMARAL","BELEN - NARIÑO",null,"CACOTA","PUERTO CAICEDO","FILANDIA","LA CELIA",null,"BARRANCABERMEJA","COVEÑAS","ATACO","BUENAVENTURA","VAUPES","VICHADA"]
["CALDAS","PUERTO ALEGRIA","ANGELOPOLIS","SARAVENA","JUAN DE ACOSTA","BOLIVAR","BOAVITA","FILADELFIA","EL PAUJIL","MONTERREY","CALDONO","CHIMICHAGUA","BOJAYA","CIENAGA DE ORO","BELTRAN","MORICHAL",null,"CAMPOALEGRE","HATONUEVO","CONCORDIA - MAGDALENA","EL CALVARIO","BUESACO",null,"CHINACOTA","PUERTO GUZMAN","GENOVA","LA VIRGINIA",null,"BETULIA - SANTANDER","EL ROBLE","CAJAMARCA","BUGALAGRANDE","YAVARATE"]
["CAQUETÁ","PUERTO ARICA","ANGOSTURA","TAME","LURUACO","CALAMAR - BOLIVAR","BOYACA - MUNICIPIO","LA DORADA","FLORENCIA - CAQUETA","NUNCHIA","CALOTO","CHIRIGUANA","CARMEN DEL DARIEN","CORDOBA","BITUIMA","PANA PANA",null,"COLOMBIA","LA GUAJIRA","EL BANCO","EL CASTILLO","CHACHAGsI",null,"CHITAGA","PUTUMAYO","LA TEBAIDA","MARSELLA",null,"BOLIVAR - SANTANDER","GALERAS","CARMEN DE APICALA","CAICEDONIA"]
["CASANARE","PUERTO NARIÑO","ANORI",null,"MALAMBO","CANTAGALLO","BOYACA-  DEPARTAMENTO","LA MERCED","LA MONTAÑITA","OROCUE","CAUCA","CURUMANI","CERTEGUI","COTORRA","BOJACA","PUERTO COLOMBIA - GUAINIA",null,"ELIAS","LA JAGUA DEL PILAR","EL PIÑON","EL DORADO","COLON - NARIÑO",null,"CONVENCION","SAN FRANCISCO - PUTUMAYO","MONTENEGRO","MISTRATO",null,"BUCARAMANGA","GUARANDA","CASABIANCA","CALI"]
["CAUCA","PUERTO SANTANDER - AMAZONAS","ANZA",null,"MANATI","CARTAGENA","BRICEÑO - BOYACA","MANIZALES","MILAN","PAZ DE ARIPORO","CORINTO","EL COPEY","CHOCO","LA APARTADA","CABRERA - CUNDINAMARCA","SAN FELIPE",null,"GARZON","MAICAO","EL RETEN","FUENTE DE ORO","CONSACA",null,"CUCUTA","SAN MIGUEL - PUTUMAYO","PIJAO","PEREIRA",null,"CABRERA - SANTANDER","LA UNION - SUCRE","CHAPARRAL","CALIMA"]
["CESAR","TARAPACA","APARTADO",null,"PALMAR DE VARELA","CICUCO","BUENAVISTA - BOYACA","MANZANARES","MORELIA","PORE","EL TAMBO - CAUCA","EL PASO","CONDOTO","LORICA","CACHIPAY",null,null,"GIGANTE","MANAURE - LA GUAJIRA","FUNDACION","GRANADA","CONTADERO",null,"CUCUTILLA","SANTIAGO - PUTUMAYO","QUIMBAYA","PUEBLO RICO",null,"CALIFORNIA","LOS PALMITOS","COELLO","CANDELARIA"]
["CHOCÓ",null,"ARBOLETES",null,"PIOJO","CLEMENCIA","BUSBANZA","MARMATO","PUERTO RICO - CAQUETA","RECETOR","FLORENCIA - CAUCA","GAMARRA","EL CANTON DEL SAN PABLO","LOS CORDOBAS","CAJICA",null,null,"GUADALUPE - HUILA","RIOHACHA","GUAMAL - MAGDALENA","GUAMAL - META","CORDOBA - NARIÑO",null,"DURANIA","SIBUNDOY","QUINDIO","QUINCHIA",null,"CAPITANEJO","MAJAGUAL","COYAIMA","CARTAGO"]
["CÓRDOBA",null,"ARGELIA - ANTIOQUIA",null,"POLONUEVO","CORDOBA - BOLIVAR","CALDAS - BOYACA","MARQUETALIA","SAN JOSE DEL FRAGUA","SABANALARGA","GUACHENE","GONZALEZ","EL CARMEN DE ATRATO","MOMIL","CAPARRAPI",null,null,"HOBO","SAN JUAN DEL CESAR","MAGDALENA","LA MACARENA","CUASPUD",null,"EL CARMEN","VALLE DEL GUAMUEZ","SALENTO","RISARALDA - RISARALDA",null,"CARCASI","MORROA","CUNDAY","DAGUA"]
["CUNDINAMARCA",null,"ARMENIA - ANTIOQUIA",null,"PONEDERA","EL CARMEN DE BOLIVAR","CAMPOHERMOSO","MARULANDA","SAN VICENTE DEL CAGUAN","SACAMA","GUAPI","LA GLORIA","EL LITORAL DEL SAN JUAN","MONTELIBANO","CAQUEZA",null,null,"HUILA","URIBIA","NUEVA GRANADA","LEJANIAS","CUMBAL",null,"EL TARRA","VILLAGARZON",null,"SANTA ROSA DE CABAL",null,"CEPITA","OVEJAS","DOLORES","EL AGUILA"]
["GUAINÍA",null,"BARBOSA - ANTIOQUIA",null,"PUERTO COLOMBIA - ATLANTICO","EL GUAMO","CERINZA","NEIRA","SOLANO","SAN LUIS DE PALENQUE","INZA","LA JAGUA DE IBIRICO","ISTMINA","MONTERIA","CARMEN DE CARUPA",null,null,"IQUIRA","URUMITA","PEDRAZA","MAPIRIPAN","CUMBITARA",null,"EL ZULIA",null,null,"SANTUARIO",null,"CERRITO","PALMITO","ESPINAL","EL CAIRO"]
["GUAVIARE",null,"BELLO",null,"REPELON","EL PEÑON - BOLIVAR","CHINAVITA","NORCASIA","SOLITA","TAMARA","JAMBALO","LA PAZ - CESAR","JURADO","MOÑITOS","CHAGUANI",null,null,"ISNOS","VILLANUEVA - LA GUAJIRA","PIJIÑO DEL CARMEN","MESETAS","EL CHARCO",null,"GRAMALOTE",{"$nulls":4},"CHARALA","SAMPUES","FALAN","EL CERRITO"]
["HUILA",null,"BELMIRA",null,"SABANAGRANDE","HATILLO DE LOBA","CHIQUINQUIRA","PACORA","VALPARAISO","TAURAMENA","LA SIERRA","MANAURE - CESAR","LLORO","PLANETA RICA","CHIA",null,null,"LA ARGENTINA",null,"PIVIJAY","META","EL PEÑOL",null,"HACARI",{"$nulls":4},"CHARTA","SAN BENITO ABAD","FLANDES","EL DOVIO"]
["LA GUAJIRA",null,"BETANIA",null,"SABANALARGA - ATLANTICO","MAGANGUE","CHIQUIZA","PALESTINA - CALDAS",null,"TRINIDAD","LA VEGA - CAUCA","PAILITAS","MEDIO ATRATO","PUEBLO NUEVO","CHIPAQUE",null,null,"LA PLATA",null,"PLATO","PUERTO CONCORDIA","EL ROSARIO",null,"HERRAN",{"$nulls":4},"CHIMA - SANTANDER","SAN JUAN DE BETULIA","FRESNO","FLORIDA"]
["MAGDALENA",null,"BETULIA - ANTIOQUIA",null,"SANTA LUCIA","MAHATES","CHISCAS","PENSILVANIA",null,"VILLANUEVA","LOPEZ","PELAYA","MEDIO BAUDO","PUERTO ESCONDIDO","CHOACHI",null,null,"NATAGA",null,"PUEBLOVIEJO","PUERTO GAITAN","EL TABLON DE GOMEZ",null,"LA ESPERANZA",{"$nulls":4},"CHIPATA","SAN LUIS DE SINCE","GUAMO","GINEBRA"]
["META",null,"BRICEÑO - ANTIOQUIA",null,"SANTO TOMAS","MARGARITA","CHITA","RIOSUCIO",null,"YOPAL","MERCADERES","PUEBLO BELLO","MEDIO SAN JUAN","PUERTO LIBERTADOR","CHOCONTA",null,null,"NEIVA",null,"REMOLINO","PUERTO LLERAS","EL TAMBO - NARIÑO",null,"LA PLAYA",{"$nulls":4},"CIMITARRA","SAN MARCOS","HERVEO","GUACARI"]
["NARIÑO",null,"BURITICA",null,"SOLEDAD","MARIA LA BAJA","CHITARAQUE","RISARALDA - CALDAS",null,null,"MIRANDA","RIO DE ORO","NOVITA","PURISIMA","COGUA",null,null,"OPORAPA",null,"SABANAS DE SAN ANGEL","PUERTO LOPEZ","FRANCISCO PIZARRO",null,"LABATECA",{"$nulls":4},"CONCEPCION - SANTANDER","SAN ONOFRE","HONDA","GUADALAJARA DE BUGA"]
["PDA_NEIVA",null,"CACERES",null,"SUAN","MOMPOS","CHIVATA","SALAMINA - CALDAS",null,null,"MORALES - CAUCA","SAN ALBERTO","NUQUI","SAHAGUN","COTA",null,null,"PAICOL",null,"SALAMINA - MAGDALENA","PUERTO RICO - META","FUNES",null,"LOS PATIOS",{"$nulls":4},"CONFINES","SAN PEDRO - SUCRE","IBAGUE","JAMUNDI"]
["NORTE_DE_SANTANDER",null,"CAICEDO",null,"TUBARA","MONTECRISTO","CHIVOR","SAMANA",null,null,"PADILLA","SAN DIEGO","QUIBDO","SAN ANDRES SOTAVENTO","CUCUNUBA",null,null,"PALERMO",null,"SAN SEBASTIAN DE BUENAVISTA","RESTREPO - META","GUACHUCAL",null,"LOURDES",{"$nulls":4},"CONTRATACION","SANTIAGO DE TOLU","ICONONZO","LA CUMBRE"]
["PUTUMAYO",null,"CALDAS - ANTIOQUIA",null,"USIACURI","MORALES - BOLIVAR","CIENEGA","SAN JOSE",null,null,"PAEZ - CAUCA","SAN MARTIN - CESAR","RIO IRO","SAN ANTERO","CUNDINAMARCA",null,null,"PALESTINA - HUILA",null,"SAN ZENON","SAN CARLOS DE GUAROA","GUAITARILLA",null,"MUTISCUA",{"$nulls":4},"COROMORO","SINCELEJO","LERIDA","LA UNION - VALLE DEL CAUCA"]
["QUINDIO",null,"CAMPAMENTO",null,null,"NOROSI","COMBITA","SUPIA",null,null,"PATIA","TAMALAMEQUE","RIO QUITO","SAN BERNARDO DEL VIENTO","EL COLEGIO",null,null,"PITAL",null,"SANTA ANA","SAN JUAN DE ARAMA","GUALMATAN",null,"NORTE DE SANTANDER",{"$nulls":4},"CURITI","SUCRE - MUNICIPIO","LIBANO","LA VICTORIA - VALLE DEL CAUCA"]
["RISARALDA",null,"CAÑASGORDAS",null,null,"PINILLOS","COPER","VICTORIA",null,null,"PIAMONTE","VALLEDUPAR","RIOSUCIO","SAN CARLOS - CORDOBA","EL PEÑON - CUNDINAMARCA",null,null,"PITALITO",null,"SANTA BARBARA DE PINTO","SAN JUANITO","ILES",null,"OCAÑA",{"$nulls":4},"EL CARMEN DE CHUCURI","SUCRE - DPTO.","MARIQUITA","OBANDO"]
["SAN_ANDRÉS",null,"CARACOLI",null,null,"REGIDOR","CORRALES","VILLAMARIA",null,null,"PIENDAMO",null,"SAN JOSE DEL PALMAR","SAN PELAYO","EL ROSAL",null,null,"RIVERA",null,"SANTA MARTA","SAN MARTIN - META","IMUES",null,"PAMPLONA",{"$nulls":4},"EL GUACAMAYO","TOLU VIEJO","MELGAR","PALMIRA"]
["SANTANDER",null,"CARAMANTA",null,null,"RIO VIEJO","COVARACHIA","VITERBO",null,null,"POPAYAN",null,"SIPI","TIERRALTA","FACATATIVA",null,null,"SALADOBLANCO",null,"SITIONUEVO","URIBE","IPIALES",null,"PAMPLONITA",{"$nulls":4},"EL PEÑON",null,"MURILLO","PRADERA"]
["SUCRE",null,"CAREPA",null,null,"SAN CRISTOBAL","CUBARA",null,null,null,"PUERTO TEJADA",null,"TADO","VALENCIA","FOMEQUE",null,null,"SAN AGUSTIN",null,"TENERIFE","VILLAVICENCIO","LA CRUZ",null,"PUERTO SANTANDER - NTE SANTANDER",{"$nulls":4},"EL PLAYON",null,"NATAGAIMA","RESTREPO - VALLE DEL CAUCA"]
["TOLIMA",null,"CAROLINA",null,null,"SAN ESTANISLAO","CUCAITA",null,null,null,"PURACE",null,"UNGUIA",null,"FOSCA",null,null,"SANTA MARIA - HUILA",null,"ZAPAYAN","VISTAHERMOSA","LA FLORIDA",null,"RAGONVALIA",{"$nulls":4},"ENCINO",null,"ORTEGA","RIOFRIO"]
["VALLE_DEL_CAUCA",null,"CAUCASIA",null,null,"SAN FERNANDO","CUITIVA",null,null,null,"ROSAS",null,"UNION PANAMERICANA",null,"FUNZA",null,null,"SUAZA",null,"ZONA BANANERA",null,"LA LLANADA",null,"SALAZAR",{"$nulls":4},"ENCISO",null,"PALOCABILDO","ROLDANILLO"]
["VAUPÉS",null,"CHIGORODO",null,null,"SAN JACINTO","DUITAMA",null,null,null,"SAN SEBASTIAN",null,null,null,"FUQUENE",null,null,"TARQUI",null,null,null,"LA TOLA",null,"SAN CALIXTO",{"$nulls":4},"FLORIAN",null,"PIEDRAS","SAN PEDRO - VALLE DEL CAUCA"]
["VICHADA",null,"CISNEROS",null,null,"SAN JACINTO DEL CAUCA","EL COCUY",null,null,null,"SANTA ROSA - CAUCA",null,null,null,"FUSAGASUGA",null,null,"TELLO",null,null,null,"LA UNION - NARIÑO",null,"SAN CAYETANO - NTE DE SANTANDER",{"$nulls":4},"FLORIDABLANCA",null,"PLANADAS","SEVILLA"]
[null,null,"CIUDAD BOLIVAR",null,null,"SAN JUAN NEPOMUCENO","EL ESPINO",null,null,null,"SANTANDER DE QUILICHAO",null,null,null,"GACHALA",null,null,"TERUEL",null,null,null,"LEIVA",null,"SANTIAGO - NTE SANTANDER",{"$nulls":4},"GALAN",null,"PRADO","TORO"]
[null,null,"COCORNA",null,null,"SAN MARTIN DE LOBA","FIRAVITOBA",null,null,null,"SILVIA",null,null,null,"GACHANCIPA",null,null,"TESALIA",null,null,null,"LINARES",null,"SARDINATA",{"$nulls":4},"GAMBITA",null,"PURIFICACION","TRUJILLO"]
[null,null,"CONCEPCION - ANTIOQUIA",null,null,"SAN PABLO - BOLIVAR","FLORESTA",null,null,null,"SOTARA",null,null,null,"GACHETA",null,null,"TIMANA",null,null,null,"LOS ANDES",null,"SILOS",{"$nulls":4},"GIRON",null,"RIOBLANCO","TULUA"]
[null,null,"CONCORDIA - ANTIOQUIA",null,null,"SANTA CATALINA","GACHANTIVA",null,null,null,"SUAREZ - CAUCA",null,null,null,"GAMA",null,null,"VILLAVIEJA",null,null,null,"MAGsI",null,"TEORAMA",{"$nulls":4},"GsEPSA",null,"RONCESVALLES","ULLOA"]
[null,null,"COPACABANA",null,null,"SANTA ROSA - BOLIVAR","GAMEZA",null,null,null,"SUCRE - CAUCA",null,null,null,"GIRARDOT",null,null,"YAGUARA",null,null,null,"MALLAMA",null,"TIBU",{"$nulls":4},"GUACA",null,"ROVIRA","VALLE DEL CAUCA"]
[null,null,"DABEIBA",null,null,"SANTA ROSA DEL SUR","GARAGOA",null,null,null,"TIMBIO",null,null,null,"GRANADA - CUNDINAMARCA",{"$nulls":6},"MOSQUERA - NARIÑO",null,"TOLEDO- NTE SANTANDER",{"$nulls":4},"GUADALUPE - SANTANDER",null,"SALDAÑA","VERSALLES"]
[null,null,"DON MATIAS",null,null,"SIMITI","GsICAN",null,null,null,"TIMBIQUI",null,null,null,"GUACHETA",{"$nulls":6},"NARIÑO - MUNICIPIO",null,"VILLA CARO",{"$nulls":4},"GUAPOTA",null,"SAN ANTONIO","VIJES"]
[null,null,"EBEJICO",null,null,"SOPLAVIENTO","GUACAMAYAS",null,null,null,"TORIBIO",null,null,null,"GUADUAS",{"$nulls":6},"NARIÑO - DPTO.",null,"VILLA DEL ROSARIO",{"$nulls":4},"GUAVATA",null,"SAN LUIS - TOLIMA","YOTOCO"]
[null,null,"EL BAGRE",null,null,"TALAIGUA NUEVO","GUATEQUE",null,null,null,"TOTORO",null,null,null,"GUASCA",{"$nulls":6},"OLAYA HERRERA",{"$nulls":6},"HATO",null,"SANTA ISABEL","YUMBO"]
[null,null,"EL CARMEN DE VIBORAL",null,null,"TIQUISIO","GUAYATA",null,null,null,"VILLA RICA",null,null,null,"GUATAQUI",{"$nulls":6},"OSPINA",{"$nulls":6},"JESUS MARIA",null,"SUAREZ - TOLIMA","ZARZAL"]
[null,null,"EL SANTUARIO",null,null,"TURBACO","IZA",{"$nulls":7},"GUATAVITA",{"$nulls":6},"PASTO",{"$nulls":6},"JORDAN",null,"TOLIMA"]
[null,null,"ENTRERRIOS",null,null,"TURBANA","JENESANO",{"$nulls":7},"GUAYABAL DE SIQUIMA",{"$nulls":6},"POLICARPA",{"$nulls":6},"LA BELLEZA",null,"VALLE DE SAN JUAN"]
[null,null,"ENVIGADO",null,null,"VILLANUEVA - BOLIVAR","JERICO - BOYACA",{"$nulls":7},"GUAYABETAL",{"$nulls":6},"POTOSI",{"$nulls":6},"LA PAZ - SANTANDER",null,"VENADILLO"]
[null,null,"FREDONIA",null,null,"ZAMBRANO","LA CAPILLA",{"$nulls":7},"GUTIERREZ",{"$nulls":6},"PROVIDENCIA - NARIÑO",{"$nulls":6},"LANDAZURI",null,"VILLAHERMOSA"]
[null,null,"FRONTINO",null,null,null,"LA UVITA",{"$nulls":7},"JERUSALEN",{"$nulls":6},"PUERRES",{"$nulls":6},"LEBRIJA",null,"VILLARRICA"]
[null,null,"GIRALDO",null,null,null,"LA VICTORIA - BOYACA",{"$nulls":7},"JUNIN",{"$nulls":6},"PUPIALES",{"$nulls":6},"LOS SANTOS"]
[null,null,"GIRARDOTA",null,null,null,"LABRANZAGRANDE",{"$nulls":7},"LA CALERA",{"$nulls":6},"RICAURTE - NARIÑO",{"$nulls":6},"MACARAVITA"]
[null,null,"GOMEZ PLATA",null,null,null,"MACANAL",{"$nulls":7},"LA MESA",{"$nulls":6},"ROBERTO PAYAN",{"$nulls":6},"MALAGA"]
[null,null,"GRANADA - ANTIOQUIA",null,null,null,"MARIPI",{"$nulls":7},"LA PALMA",{"$nulls":6},"SAMANIEGO",{"$nulls":6},"MATANZA"]
[null,null,"GUADALUPE - ANTIOQUIA",null,null,null,"MIRAFLORES - BOYACA",{"$nulls":7},"LA PEÑA",{"$nulls":6},"SAN ANDRES DE TUMACO",{"$nulls":6},"MOGOTES"]
[null,null,"GUARNE",null,null,null,"MONGUA",{"$nulls":7},"LA VEGA - CUNDIMARCA",{"$nulls":6},"SAN BERNARDO - NARIÑO",{"$nulls":6},"MOLAGAVITA"]
[null,null,"GUATAPE",null,null,null,"MONGUI",{"$nulls":7},"LENGUAZAQUE",{"$nulls":6},"SAN LORENZO",{"$nulls":6},"OCAMONTE"]
[null,null,"HELICONIA",null,null,null,"MONIQUIRA",{"$nulls":7},"MACHETA",{"$nulls":6},"SAN PABLO - NARIÑO",{"$nulls":6},"OIBA"]
[null,null,"HISPANIA",null,null,null,"MOTAVITA",{"$nulls":7},"MADRID",{"$nulls":6},"SAN PEDRO DE CARTAGO",{"$nulls":6},"ONZAGA"]
[null,null,"ITAGUI",null,null,null,"MUZO",{"$nulls":7},"MANTA",{"$nulls":6},"SANDONA",{"$nulls":6},"PALMAR"]
[null,null,"ITUANGO",null,null,null,"NOBSA",{"$nulls":7},"MEDINA",{"$nulls":6},"SANTA BARBARA - NARIÑO",{"$nulls":6},"PALMAS DEL SOCORRO"]
[null,null,"JARDIN",null,null,null,"NUEVO COLON",{"$nulls":7},"MOSQUERA - CUNDINAMARCA",{"$nulls":6},"SANTACRUZ",{"$nulls":6},"PARAMO"]
[null,null,"JERICO - ANTIOQUIA",null,null,null,"OICATA",{"$nulls":7},"NARIÑO - CUNDINAMARCA",{"$nulls":6},"SAPUYES",{"$nulls":6},"PIEDECUESTA"]
[null,null,"LA CEJA",null,null,null,"OTANCHE",{"$nulls":7},"NEMOCON",{"$nulls":6},"TAMINANGO",{"$nulls":6},"PINCHOTE"]
[null,null,"LA ESTRELLA",null,null,null,"PACHAVITA",{"$nulls":7},"NILO",{"$nulls":6},"TANGUA",{"$nulls":6},"PUENTE NACIONAL"]
[null,null,"LA PINTADA",null,null,null,"PAEZ - BOYACA",{"$nulls":7},"NIMAIMA",{"$nulls":6},"TUQUERRES",{"$nulls":6},"PUERTO PARRA"]
[null,null,"LA UNION - ANTIOQUIA",null,null,null,"PAIPA",{"$nulls":7},"NOCAIMA",{"$nulls":6},"YACUANQUER",{"$nulls":6},"PUERTO WILCHES"]
[null,null,"LIBORINA",null,null,null,"PAJARITO",{"$nulls":7},"PACHO",{"$nulls":13},"RIONEGRO - SANTANDER"]
[null,null,"MACEO",null,null,null,"PANQUEBA",{"$nulls":7},"PAIME",{"$nulls":13},"SABANA DE TORRES"]
[null,null,"MARINILLA",null,null,null,"PAUNA",{"$nulls":7},"PANDI",{"$nulls":13},"SAN ANDRES - SANTANDER"]
[null,null,"MEDELLIN",null,null,null,"PAYA",{"$nulls":7},"PARATEBUENO",{"$nulls":13},"SAN BENITO"]
[null,null,"MONTEBELLO",null,null,null,"PAZ DE RIO",{"$nulls":7},"PASCA",{"$nulls":13},"SAN GIL"]
[null,null,"MURINDO",null,null,null,"PESCA",{"$nulls":7},"PUERTO SALGAR",{"$nulls":13},"SAN JOAQUIN"]
[null,null,"MUTATA",null,null,null,"PISBA",{"$nulls":7},"PULI",{"$nulls":13},"SAN JOSE DE MIRANDA"]
[null,null,"NARIÑO - ANTIOQUIA",null,null,null,"PUERTO BOYACA",{"$nulls":7},"QUEBRADANEGRA",{"$nulls":13},"SAN MIGUEL - SANTANDER"]
[null,null,"NECHI",null,null,null,"QUIPAMA",{"$nulls":7},"QUETAME",{"$nulls":13},"SAN VICENTE DE CHUCURI"]
[null,null,"NECOCLI",null,null,null,"RAMIRIQUI",{"$nulls":7},"QUIPILE",{"$nulls":13},"SANTA BARBARA - SANTANDER"]
[null,null,"OLAYA",null,null,null,"RAQUIRA",{"$nulls":7},"RICAURTE - CUNDINAMARCA",{"$nulls":13},"SANTA HELENA DEL OPON"]
[null,null,"PEÐOL",null,null,null,"RONDON",{"$nulls":7},"SAN ANTONIO DEL TEQUENDAMA",{"$nulls":13},"SANTANDER"]
[null,null,"PEQUE",null,null,null,"SABOYA",{"$nulls":7},"SAN BERNARDO - CUNDINAMARCA",{"$nulls":13},"SIMACOTA"]
[null,null,"PUEBLORRICO",null,null,null,"SACHICA",{"$nulls":7},"SAN CAYETANO - CUNDINAMARCA",{"$nulls":13},"SOCORRO"]
[null,null,"PUERTO BERRIO",null,null,null,"SAMACA",{"$nulls":7},"SAN FRANCISCO - CUNDINAMARCA",{"$nulls":13},"SUAITA"]
[null,null,"PUERTO NARE",null,null,null,"SAN EDUARDO",{"$nulls":7},"SAN JUAN DE RIO SECO",{"$nulls":13},"SUCRE - SANTANDER"]
[null,null,"PUERTO TRIUNFO",null,null,null,"SAN JOSE DE PARE",{"$nulls":7},"SASAIMA",{"$nulls":13},"SURATA"]
[null,null,"REMEDIOS",null,null,null,"SAN LUIS DE GACENO",{"$nulls":7},"SESQUILE",{"$nulls":13},"TONA"]
[null,null,"RETIRO",null,null,null,"SAN MATEO",{"$nulls":7},"SIBATE",{"$nulls":13},"VALLE DE SAN JOSE"]
[null,null,"RIONEGRO - ANTIOQUIA",null,null,null,"SAN MIGUEL DE SEMA",{"$nulls":7},"SILVANIA",{"$nulls":13},"VELEZ"]
[null,null,"SABANALARGA - ANTIOQUIA",null,null,null,"SAN PABLO DE BORBUR",{"$nulls":7},"SIMIJACA",{"$nulls":13},"VETAS"]
[null,null,"SABANETA",null,null,null,"SANTA MARIA - BOYACA",{"$nulls":7},"SOACHA",{"$nulls":13},"VILLANUEVA - SANTANDER"]
[null,null,"SALGAR",null,null,null,"SANTA ROSA DE VITERBO",{"$nulls":7},"SOPO",{"$nulls":13},"ZAPATOCA"]
[null,null,"SAN ANDRES DE CUERQUIA",null,null,null,"SANTA SOFIA",{"$nulls":7},"SUBACHOQUE"]
[null,null,"SAN CARLOS - ANTIOQUIA",null,null,null,"SANTANA",{"$nulls":7},"SUESCA"]
[null,null,"SAN FRANCISCO - ANTIOQUIA",null,null,null,"SATIVANORTE",{"$nulls":7},"SUPATA"]
[null,null,"SAN JERONIMO",null,null,null,"SATIVASUR",{"$nulls":7},"SUSA"]
[null,null,"SAN JOSE DE LA MONTAÑA",null,null,null,"SIACHOQUE",{"$nulls":7},"SUTATAUSA"]
[null,null,"SAN JUAN DE URABA",null,null,null,"SOATA",{"$nulls":7},"TABIO"]
[null,null,"SAN LUIS - ANTIOQUIA",null,null,null,"SOCHA",{"$nulls":7},"TAUSA"]
[null,null,"SAN PEDRO - ANTIOQUIA",null,null,null,"SOCOTA",{"$nulls":7},"TENA"]
[null,null,"SAN PEDRO DE URABA",null,null,null,"SOGAMOSO",{"$nulls":7},"TENJO"]
[null,null,"SAN RAFAEL",null,null,null,"SOMONDOCO",{"$nulls":7},"TIBACUY"]
[null,null,"SAN ROQUE",null,null,null,"SORA",{"$nulls":7},"TIBIRITA"]
[null,null,"SAN VICENTE",null,null,null,"SORACA",{"$nulls":7},"TOCAIMA"]
[null,null,"SANTA BARBARA - ANTIOQUIA",null,null,null,"SOTAQUIRA",{"$nulls":7},"TOCANCIPA"]
[null,null,"SANTA ROSA DE OSOS",null,null,null,"SUSACON",{"$nulls":7},"TOPAIPI"]
[null,null,"SANTAFE DE ANTIOQUIA",null,null,null,"SUTAMARCHAN",{"$nulls":7},"UBALA"]
[null,null,"SANTO DOMINGO",null,null,null,"SUTATENZA",{"$nulls":7},"UBAQUE"]
[null,null,"SEGOVIA",null,null,null,"TASCO",{"$nulls":7},"UNE"]
[null,null,"SONSON",null,null,null,"TENZA",{"$nulls":7},"UTICA"]
[null,null,"SOPETRAN",null,null,null,"TIBANA",{"$nulls":7},"VENECIA - CUNDINAMARCA"]
[null,null,"TAMESIS",null,null,null,"TIBASOSA",{"$nulls":7},"VERGARA"]
[null,null,"TARAZA",null,null,null,"TINJACA",{"$nulls":7},"VIANI"]
[null,null,"TARSO",null,null,null,"TIPACOQUE",{"$nulls":7},"VILLA DE SAN DIEGO DE UBATE"]
[null,null,"TITIRIBI",null,null,null,"TOCA",{"$nulls":7},"VILLAGOMEZ"]
[null,null,"TOLEDO-ANTIOQUIA",null,null,null,"TOGSI",{"$nulls":7},"VILLAPINZON"]
[null,null,"TURBO",null,null,null,"TOPAGA",{"$nulls":7},"VILLETA"]
[null,null,"URAMITA",null,null,null,"TOTA",{"$nulls":7},"VIOTA"]
[null,null,"URRAO",null,null,null,"TUNJA",{"$nulls":7},"YACOPI"]
[null,null,"VALDIVIA",null,null,null,"TUNUNGUA",{"$nulls":7},"ZIPACON"]
[null,null,"VALPARAISO - ANTIOQUIA",null,null,null,"TURMEQUE",{"$nulls":7},"ZIPAQUIRA"]
[null,null,"VEGACHI",null,null,null,"TUTA",{"$nulls":7},"BOGOTA"]
[null,null,"VENECIA - ANTIOQUIA",null,null,null,"TUTAZA",{"$nulls":7},"BOGOTA, D.C."]
[null,null,"VIGIA DEL FUERTE",null,null,null,"UMBITA"]
[null,null,"YALI",null,null,null,"VENTAQUEMADA"]
[null,null,"YARUMAL",null,null,null,"VILLA DE LEYVA"]
[null,null,"YOLOMBO",null,null,null,"VIRACACHA"]
[null,null,"YONDO",null,null,null,"ZETAQUIRA"]
[null,null,"ZARAGOZA"]

{"sheet":"CODI_DANE","index":3,"n_rows":1172,"n_cols":9,"rows_kept":1172,"cut":false,"hidden":true,"merged":[]}
["Nombre Departamento","Nombre Municipio","Código\nMunicipio",null,null,null,"PAP-PDA"]
["ANTIOQUIA","ABEJORRAL",5002,false,null,"AMAZONAS","AMAZONAS",91000,{"$f":"CONCATENATE(\"PAP-PDA - \",VLOOKUP('Programación de pagos'!$B$6,$F$2:$H$34,3,))","v":"PAP-PDA - 68000"}]
["N. DE SANTANDER","ABREGO",54003,false,null,"ANTIOQUIA","ANTIOQUIA",5000]
["ANTIOQUIA","ABRIAQUI",5004,false,null,"ARAUCA","ARAUCA",8100]
["META","ACACIAS",50006,false,null,"ATLÁNTICO","ATLÁNTICO",8000]
["CHOCO","ACANDI",27006,false,null,"BOLÍVAR","BOLÍVAR",13000]
["HUILA","ACEVEDO",41006,false,null,"BOYACÁ","BOYACA",15000]
["BOLIVAR","ACHI",13006,false,null,"CALDAS","CALDAS",17000]
["HUILA","AGRADO",41013,false,null,"CAQUETÁ","CAQUETA",18000]
["CUNDINAMARCA","AGUA DE DIOS",25001,false,null,"CASANARE","CASANARE",85000]
["CESAR","AGUACHICA",20011,false,null,"CAUCA","CAUCA",19000]
["SANTANDER","AGUADA",68013,false,null,"CESAR","CESAR",20999]
["CALDAS","AGUADAS",17013,false,null,"CHOCÓ","CHOCÓ",27000]
["CASANARE","AGUAZUL",85010,false,null,"CÓRDOBA","CÓRDOBA",23000]
["CESAR","AGUSTIN CODAZZI",20013,false,null,"CUNDINAMARCA","CUNDINAMARCA",25000]
["HUILA","AIPE",41016,false,null,"GUAINÍA","GUAINÍA",94000]
["CUNDINAMARCA","ALBAN - CUNDINAMARCA",25019,false,null,"GUAVIARE","GUAVIARE",95000]
["NARIÑO","ALBAN - NARIÑO",52019,false,null,"HUILA","HUILA",41000]
["CAQUETA","ALBANIA - CAQUETA",18029,false,null,"PDA_NEIVA","PDA NEIVA",41001]
["LA GUAJIRA","ALBANIA - LA GUAJIRA",44035,false,null,"LA GUAJIRA","GUAJIRA",44000]
["SANTANDER","ALBANIA - SANTANDER",68020,false,null,"MAGDALENA","MAGDALENA ",47000]
["VALLE DEL CAUCA","ALCALA",76020,false,null,"META","META",50000]
["NARIÑO","ALDANA",52022,false,null,"NARIÑO","NARIÑO",52000]
["ANTIOQUIA","ALEJANDRIA",5021,false,null,"NORTE_DE_SANTANDER","NORTE DE SANTANDER",54000]
["MAGDALENA","ALGARROBO",47030,false,null,"PUTUMAYO","PUTUMAYO ",86000]
["HUILA","ALGECIRAS",41020,false,null,"QUINDIO","QUINDÍO",63000]
["CAUCA","ALMAGUER",19022,false,null,"RISARALDA","RISARALDA",66000]
["BOYACA","ALMEIDA",15022,false,null,"SAN_ANDRÉS","SAN ANDRÉS",88000]
["TOLIMA","ALPUJARRA",73024,false,null,"SANTANDER","SANTANDER",68000]
["HUILA","ALTAMIRA",41026,false,null,"SUCRE","SUCRE",70000]
["CHOCO","ALTO BAUDO",27025,false,null,"TOLIMA","TOLIMA",73000]
["BOLIVAR","ALTOS DEL ROSARIO",13030,false,null,"VALLE_DEL_CAUCA","VALLE DEL CAUCA",76000]
["TOLIMA","ALVARADO",73026,false,null,"VAUPÉS","VAUPÉS",97000]
["ANTIOQUIA","AMAGA",5030,false,null,"VICHADA","VICHADA",99000]
["ANTIOQUIA","AMALFI",5031,false]
["AMAZONAS","AMAZONAS",91999,false]
["TOLIMA","AMBALEMA",73030,false]
["CUNDINAMARCA","ANAPOIMA",25035,false]
["NARIÑO","ANCUYA",52036,false]
["VALLE DEL CAUCA","ANDALUCIA",76036,false]
["ANTIOQUIA","ANDES",5034,false]
["ANTIOQUIA","ANGELOPOLIS",5036,false]
["ANTIOQUIA","ANGOSTURA",5038,false]
["CUNDINAMARCA","ANOLAIMA",25040,false]
["ANTIOQUIA","ANORI",5040,false]
["CALDAS","ANSERMA",17042,false]
["VALLE DEL CAUCA","ANSERMANUEVO",76041,false]
["ANTIOQUIA","ANTIOQUIA",5999,false]
["ANTIOQUIA","ANZA",5044,false]
["TOLIMA","ANZOATEGUI",73043,false]
["ANTIOQUIA","APARTADO",5045,false]
["RISARALDA","APIA",66045,false]
["CUNDINAMARCA","APULO",25599,false]
["BOYACA","AQUITANIA",15047,false]
["MAGDALENA","ARACATACA",47053,false]
["CALDAS","ARANZAZU",17050,false]
["SANTANDER","ARATOCA",68051,false]
["ARAUCA","ARAUCA - MUNICIPIO",81001,false]
["ARAUCA","ARAUCA - DEPARTAMENTO",81999,false]
["ARAUCA","ARAUQUITA",81065,false]
["CUNDINAMARCA","ARBELAEZ",25053,false]
["NARIÑO","ARBOLEDA",52051,false]
["N. DE SANTANDER","ARBOLEDAS",54051,false]
["ANTIOQUIA","ARBOLETES",5051,false]
["BOYACA","ARCABUCO",15051,false]
["BOLIVAR","ARENAL",13042,false]
["ANTIOQUIA","ARGELIA - ANTIOQUIA",5055,false]
["CAUCA","ARGELIA - CAUCA",19050,false]
["VALLE DEL CAUCA","ARGELIA",76054,false]
["MAGDALENA","ARIGUANI",47058,false]
["BOLIVAR","ARJONA",13052,false]
["ANTIOQUIA","ARMENIA - ANTIOQUIA",5059,false]
["QUINDIO","ARMENIA - QUINDIO",63001,false]
["TOLIMA","ARMERO",73055,false]
["BOLIVAR","ARROYOHONDO",13062,false]
["CESAR","ASTREA",20032,false]
["TOLIMA","ATACO",73067,false]
["ATLANTICO","ATLANTICO",8999,false]
["CHOCO","ATRATO",27050,false]
["CORDOBA","AYAPEL",23068,false]
["CHOCO","BAGADO",27073,false]
["CHOCO","BAHIA SOLANO",27075,false]
["CHOCO","BAJO BAUDO",27077,false]
["CAUCA","BALBOA - CAUCA",19075,false]
["RISARALDA","BALBOA - RISARALDA",66075,false]
["ATLANTICO","BARANOA",8078,false]
["HUILA","BARAYA",41078,false]
["NARIÑO","BARBACOAS",52079,false]
["ANTIOQUIA","BARBOSA - ANTIOQUIA",5079,false]
["SANTANDER","BARBOSA - SANTANDER",68077,false]
["SANTANDER","BARICHARA",68079,false]
["META","BARRANCA DE UPIA",50110,false]
["SANTANDER","BARRANCABERMEJA",68081,false]
["LA GUAJIRA","BARRANCAS",44078,false]
["BOLIVAR","BARRANCO DE LOBA",13074,false]
["GUAINIA","BARRANCO MINAS",94343,false]
["ATLANTICO","BARRANQUILLA",8001,false]
["CESAR","BECERRIL",20045,false]
["CALDAS","BELALCAZAR",17088,false]
["BOYACA","BELEN - BOYACA",15087,false]
["NARIÑO","BELEN - NARIÑO",52083,false]
["CAQUETA","BELEN DE LOS ANDAQUIES",18094,false]
["RISARALDA","BELEN DE UMBRIA",66088,false]
["ANTIOQUIA","BELLO",5088,false]
["ANTIOQUIA","BELMIRA",5086,false]
["CUNDINAMARCA","BELTRAN",25086,false]
["BOYACA","BERBEO",15090,false]
["ANTIOQUIA","BETANIA",5091,false]
["BOYACA","BETEITIVA",15092,false]
["ANTIOQUIA","BETULIA - ANTIOQUIA",5093,false]
["SANTANDER","BETULIA - SANTANDER",68092,false]
["CUNDINAMARCA","BITUIMA",25095,false]
["BOYACA","BOAVITA",15097,false]
["N. DE SANTANDER","BOCHALEMA",54099,false]
["BOGOTA","BOGOTA",11999,false]
["BOGOTA","BOGOTA, D.C.",11001,false]
["CUNDINAMARCA","BOJACA",25099,false]
["CHOCO","BOJAYA",27099,false]
["CAUCA","BOLIVAR - CAUCA",19100,false]
["SANTANDER","BOLIVAR - SANTANDER",68101,false]
["VALLE DEL CAUCA","BOLIVAR - VALLE DEL CAUCA",76100,false]
["BOLIVAR","BOLIVAR",13999,false]
["CESAR","BOSCONIA",20060,false]
["BOYACA","BOYACA - MUNICIPIO",15104,false]
["BOYACA","BOYACA-  DEPARTAMENTO",15999,false]
["ANTIOQUIA","BRICEÑO - ANTIOQUIA",5107,false]
["BOYACA","BRICEÑO - BOYACA",15106,false]
["SANTANDER","BUCARAMANGA",68001,false]
["N. DE SANTANDER","BUCARASICA",54109,false]
["VALLE DEL CAUCA","BUENAVENTURA",76109,false]
["BOYACA","BUENAVISTA - BOYACA",15109,false]
["CORDOBA","BUENAVISTA - CORDOBA",23079,false]
["QUINDIO","BUENAVISTA - QUINDIO",63111,false]
["SUCRE","BUENAVISTA",70110,false]
["CAUCA","BUENOS AIRES",19110,false]
["NARIÑO","BUESACO",52110,false]
["VALLE DEL CAUCA","BUGALAGRANDE",76113,false]
["ANTIOQUIA","BURITICA",5113,false]
["BOYACA","BUSBANZA",15114,false]
["CUNDINAMARCA","CABRERA - CUNDINAMARCA",25120,false]
["SANTANDER","CABRERA - SANTANDER",68121,false]
["META","CABUYARO",50124,false]
["GUAINIA","CACAHUAL",94886,false]
["ANTIOQUIA","CACERES",5120,false]
["CUNDINAMARCA","CACHIPAY",25123,false]
["N. DE SANTANDER","CACHIRA",54128,false]
["N. DE SANTANDER","CACOTA",54125,false]
["ANTIOQUIA","CAICEDO",5125,false]
["VALLE DEL CAUCA","CAICEDONIA",76122,false]
["SUCRE","CAIMITO",70124,false]
["TOLIMA","CAJAMARCA",73124,false]
["CAUCA","CAJIBIO",19130,false]
["CUNDINAMARCA","CAJICA",25126,false]
["BOLIVAR","CALAMAR - BOLIVAR",13140,false]
["GUAVIARE","CALAMAR - GUAVIARE",95015,false]
["QUINDIO","CALARCA",63130,false]
["ANTIOQUIA","CALDAS - ANTIOQUIA",5129,false]
["BOYACA","CALDAS - BOYACA",15131,false]
["CALDAS","CALDAS -DPTO.",17999,false]
["CAUCA","CALDONO",19137,false]
["VALLE DEL CAUCA","CALI",76001,false]
["SANTANDER","CALIFORNIA",68132,false]
["VALLE DEL CAUCA","CALIMA",76126,false]
["CAUCA","CALOTO",19142,false]
["ANTIOQUIA","CAMPAMENTO",5134,false]
["ATLANTICO","CAMPO DE LA CRUZ",8137,false]
["HUILA","CAMPOALEGRE",41132,false]
["BOYACA","CAMPOHERMOSO",15135,false]
["CORDOBA","CANALETE",23090,false]
["ATLANTICO","CANDELARIA - ATLANTICO",8141,false]
["VALLE DEL CAUCA","CANDELARIA",76130,false]
["BOLIVAR","CANTAGALLO",13160,false]
["ANTIOQUIA","CAÑASGORDAS",5138,false]
["CUNDINAMARCA","CAPARRAPI",25148,false]
["SANTANDER","CAPITANEJO",68147,false]
["CAQUETA","CAQUETA",18999,false]
["CUNDINAMARCA","CAQUEZA",25151,false]
["ANTIOQUIA","CARACOLI",5142,false]
["ANTIOQUIA","CARAMANTA",5145,false]
["SANTANDER","CARCASI",68152,false]
["ANTIOQUIA","CAREPA",5147,false]
["TOLIMA","CARMEN DE APICALA",73148,false]
["CUNDINAMARCA","CARMEN DE CARUPA",25154,false]
["CHOCO","CARMEN DEL DARIEN",27150,false]
["ANTIOQUIA","CAROLINA",5150,false]
["BOLIVAR","CARTAGENA",13001,false]
["CAQUETA","CARTAGENA DEL CHAIRA",18150,false]
["VALLE DEL CAUCA","CARTAGO",76147,false]
["VAUPES","CARURU",97161,false]
["TOLIMA","CASABIANCA",73152,false]
["CASANARE","CASANARE",85999,false]
["META","CASTILLA LA NUEVA",50150,false]
["CAUCA","CAUCA",19999,false]
["ANTIOQUIA","CAUCASIA",5154,false]
["SANTANDER","CEPITA",68160,false]
["CORDOBA","CERETE",23162,false]
["BOYACA","CERINZA",15162,false]
["SANTANDER","CERRITO",68162,false]
["MAGDALENA","CERRO SAN ANTONIO",47161,false]
["CHOCO","CERTEGUI",27160,false]
["CESAR","CESAR",20999,false]
["NARIÑO","CHACHAGsI",52240,false]
["CUNDINAMARCA","CHAGUANI",25168,false]
["SUCRE","CHALAN",70230,false]
["CASANARE","CHAMEZA",85015,false]
["TOLIMA","CHAPARRAL",73168,false]
["SANTANDER","CHARALA",68167,false]
["SANTANDER","CHARTA",68169,false]
["CUNDINAMARCA","CHIA",25175,false]
["MAGDALENA","CHIBOLO",47170,false]
["ANTIOQUIA","CHIGORODO",5172,false]
["CORDOBA","CHIMA - CORDOBA",23168,false]
["SANTANDER","CHIMA - SANTANDER",68176,false]
["CESAR","CHIMICHAGUA",20175,false]
["N. DE SANTANDER","CHINACOTA",54172,false]
["BOYACA","CHINAVITA",15172,false]
["CALDAS","CHINCHINA",17174,false]
["CORDOBA","CHINU",23182,false]
["CUNDINAMARCA","CHIPAQUE",25178,false]
["SANTANDER","CHIPATA",68179,false]
["BOYACA","CHIQUINQUIRA",15176,false]
["BOYACA","CHIQUIZA",15232,false]
["CESAR","CHIRIGUANA",20178,false]
["BOYACA","CHISCAS",15180,false]
["BOYACA","CHITA",15183,false]
["N. DE SANTANDER","CHITAGA",54174,false]
["BOYACA","CHITARAQUE",15185,false]
["BOYACA","CHIVATA",15187,false]
["BOYACA","CHIVOR",15236,false]
["CUNDINAMARCA","CHOACHI",25181,false]
["CHOCO","CHOCO",27999,false]
["CUNDINAMARCA","CHOCONTA",25183,false]
["BOLIVAR","CICUCO",13188,false]
["MAGDALENA","CIENAGA",47189,false]
["CORDOBA","CIENAGA DE ORO",23189,false]
["BOYACA","CIENEGA",15189,false]
["SANTANDER","CIMITARRA",68190,false]
["QUINDIO","CIRCASIA",63190,false]
["ANTIOQUIA","CISNEROS",5190,false]
["ANTIOQUIA","CIUDAD BOLIVAR",5101,false]
["BOLIVAR","CLEMENCIA",13222,false]
["ANTIOQUIA","COCORNA",5197,false]
["TOLIMA","COELLO",73200,false]
["CUNDINAMARCA","COGUA",25200,false]
["HUILA","COLOMBIA",41206,false]
["NARIÑO","COLON - NARIÑO",52203,false]
["PUTUMAYO","COLON - PUTUMAYO",86219,false]
["SUCRE","COLOSO",70204,false]
["BOYACA","COMBITA",15204,false]
["ANTIOQUIA","CONCEPCION - ANTIOQUIA",5206,false]
["SANTANDER","CONCEPCION - SANTANDER",68207,false]
["ANTIOQUIA","CONCORDIA - ANTIOQUIA",5209,false]
["MAGDALENA","CONCORDIA - MAGDALENA",47205,false]
["CHOCO","CONDOTO",27205,false]
["SANTANDER","CONFINES",68209,false]
["NARIÑO","CONSACA",52207,false]
["NARIÑO","CONTADERO",52210,false]
["SANTANDER","CONTRATACION",68211,false]
["N. DE SANTANDER","CONVENCION",54206,false]
["ANTIOQUIA","COPACABANA",5212,false]
["BOYACA","COPER",15212,false]
["BOLIVAR","CORDOBA - BOLIVAR",13212,false]
["NARIÑO","CORDOBA - NARIÑO",52215,false]
["QUINDIO","CORDOBA - QUINDIO",63212,false]
["CORDOBA","CORDOBA",23999,false]
["CAUCA","CORINTO",19212,false]
["SANTANDER","COROMORO",68217,false]
["SUCRE","COROZAL",70215,false]
["BOYACA","CORRALES",15215,false]
["CUNDINAMARCA","COTA",25214,false]
["CORDOBA","COTORRA",23300,false]
["BOYACA","COVARACHIA",15218,false]
["SUCRE","COVEÑAS",70221,false]
["TOLIMA","COYAIMA",73217,false]
["ARAUCA","CRAVO NORTE",81220,false]
["NARIÑO","CUASPUD",52224,false]
["BOYACA","CUBARA",15223,false]
["META","CUBARRAL",50223,false]
["BOYACA","CUCAITA",15224,false]
["CUNDINAMARCA","CUCUNUBA",25224,false]
["N. DE SANTANDER","CUCUTA",54001,false]
["N. DE SANTANDER","CUCUTILLA",54223,false]
["BOYACA","CUITIVA",15226,false]
["META","CUMARAL",50226,false]
["VICHADA","CUMARIBO",99773,false]
["NARIÑO","CUMBAL",52227,false]
["NARIÑO","CUMBITARA",52233,false]
["TOLIMA","CUNDAY",73226,false]
["CUNDINAMARCA","CUNDINAMARCA",25999,false]
["CAQUETA","CURILLO",18205,false]
["SANTANDER","CURITI",68229,false]
["CESAR","CURUMANI",20228,false]
["ANTIOQUIA","DABEIBA",5234,false]
["VALLE DEL CAUCA","DAGUA",76233,false]
["LA GUAJIRA","DIBULLA",44090,false]
["LA GUAJIRA","DISTRACCION",44098,false]
["TOLIMA","DOLORES",73236,false]
["ANTIOQUIA","DON MATIAS",5237,false]
["RISARALDA","DOSQUEBRADAS",66170,false]
["BOYACA","DUITAMA",15238,false]
["N. DE SANTANDER","DURANIA",54239,false]
["ANTIOQUIA","EBEJICO",5240,false]
["VALLE DEL CAUCA","EL AGUILA",76243,false]
["ANTIOQUIA","EL BAGRE",5250,false]
["MAGDALENA","EL BANCO",47245,false]
["VALLE DEL CAUCA","EL CAIRO",76246,false]
["META","EL CALVARIO",50245,false]
["CHOCO","EL CANTON DEL SAN PABLO",27135,false]
["N. DE SANTANDER","EL CARMEN",54245,false]
["CHOCO","EL CARMEN DE ATRATO",27245,false]
["BOLIVAR","EL CARMEN DE BOLIVAR",13244,false]
["SANTANDER","EL CARMEN DE CHUCURI",68235,false]
["ANTIOQUIA","EL CARMEN DE VIBORAL",5148,false]
["META","EL CASTILLO",50251,false]
["VALLE DEL CAUCA","EL CERRITO",76248,false]
["NARIÑO","EL CHARCO",52250,false]
["BOYACA","EL COCUY",15244,false]
["CUNDINAMARCA","EL COLEGIO",25245,false]
["CESAR","EL COPEY",20238,false]
["CAQUETA","EL DONCELLO",18247,false]
["META","EL DORADO",50270,false]
["VALLE DEL CAUCA","EL DOVIO",76250,false]
["AMAZONAS","EL ENCANTO",91263,false]
["BOYACA","EL ESPINO",15248,false]
["SANTANDER","EL GUACAMAYO",68245,false]
["BOLIVAR","EL GUAMO",13248,false]
["CHOCO","EL LITORAL DEL SAN JUAN",27250,false]
["LA GUAJIRA","EL MOLINO",44110,false]
["CESAR","EL PASO",20250,false]
["CAQUETA","EL PAUJIL",18256,false]
["NARIÑO","EL PEÑOL",52254,false]
["BOLIVAR","EL PEÑON - BOLIVAR",13268,false]
["CUNDINAMARCA","EL PEÑON - CUNDINAMARCA",25258,false]
["SANTANDER","EL PEÑON",68250,false]
["MAGDALENA","EL PIÑON",47258,false]
["SANTANDER","EL PLAYON",68255,false]
["MAGDALENA","EL RETEN",47268,false]
["GUAVIARE","EL RETORNO",95025,false]
["SUCRE","EL ROBLE",70233,false]
["CUNDINAMARCA","EL ROSAL",25260,false]
["NARIÑO","EL ROSARIO",52256,false]
["ANTIOQUIA","EL SANTUARIO",5697,false]
["NARIÑO","EL TABLON DE GOMEZ",52258,false]
["CAUCA","EL TAMBO - CAUCA",19256,false]
["NARIÑO","EL TAMBO - NARIÑO",52260,false]
["N. DE SANTANDER","EL TARRA",54250,false]
["N. DE SANTANDER","EL ZULIA",54261,false]
["HUILA","ELIAS",41244,false]
["SANTANDER","ENCINO",68264,false]
["SANTANDER","ENCISO",68266,false]
["ANTIOQUIA","ENTRERRIOS",5264,false]
["ANTIOQUIA","ENVIGADO",5266,false]
["TOLIMA","ESPINAL",73268,false]
["CUNDINAMARCA","FACATATIVA",25269,false]
["TOLIMA","FALAN",73270,false]
["CALDAS","FILADELFIA",17272,false]
["QUINDIO","FILANDIA",63272,false]
["BOYACA","FIRAVITOBA",15272,false]
["TOLIMA","FLANDES",73275,false]
["CAQUETA","FLORENCIA - CAQUETA",18001,false]
["CAUCA","FLORENCIA - CAUCA",19290,false]
["BOYACA","FLORESTA",15276,false]
["SANTANDER","FLORIAN",68271,false]
["VALLE DEL CAUCA","FLORIDA",76275,false]
["SANTANDER","FLORIDABLANCA",68276,false]
["CUNDINAMARCA","FOMEQUE",25279,false]
["LA GUAJIRA","FONSECA",44279,false]
["ARAUCA","FORTUL",81300,false]
["CUNDINAMARCA","FOSCA",25281,false]
["NARIÑO","FRANCISCO PIZARRO",52520,false]
["ANTIOQUIA","FREDONIA",5282,false]
["TOLIMA","FRESNO",73283,false]
["ANTIOQUIA","FRONTINO",5284,false]
["META","FUENTE DE ORO",50287,false]
["MAGDALENA","FUNDACION",47288,false]
["NARIÑO","FUNES",52287,false]
["CUNDINAMARCA","FUNZA",25286,false]
["CUNDINAMARCA","FUQUENE",25288,false]
["CUNDINAMARCA","FUSAGASUGA",25290,false]
["CUNDINAMARCA","GACHALA",25293,false]
["CUNDINAMARCA","GACHANCIPA",25295,false]
["BOYACA","GACHANTIVA",15293,false]
["CUNDINAMARCA","GACHETA",25297,false]
["SANTANDER","GALAN",68296,false]
["ATLANTICO","GALAPA",8296,false]
["SUCRE","GALERAS",70235,false]
["CUNDINAMARCA","GAMA",25299,false]
["CESAR","GAMARRA",20295,false]
["SANTANDER","GAMBITA",68298,false]
["BOYACA","GAMEZA",15296,false]
["BOYACA","GARAGOA",15299,false]
["HUILA","GARZON",41298,false]
["QUINDIO","GENOVA",63302,false]
["HUILA","GIGANTE",41306,false]
["VALLE DEL CAUCA","GINEBRA",76306,false]
["ANTIOQUIA","GIRALDO",5306,false]
["CUNDINAMARCA","GIRARDOT",25307,false]
["ANTIOQUIA","GIRARDOTA",5308,false]
["SANTANDER","GIRON",68307,false]
["ANTIOQUIA","GOMEZ PLATA",5310,false]
["CESAR","GONZALEZ",20310,false]
["N. DE SANTANDER","GRAMALOTE",54313,false]
["ANTIOQUIA","GRANADA - ANTIOQUIA",5313,false]
["CUNDINAMARCA","GRANADA - CUNDINAMARCA",25312,false]
["META","GRANADA",50313,false]
["SANTANDER","GsEPSA",68327,false]
["BOYACA","GsICAN",15332,false]
["SANTANDER","GUACA",68318,false]
["BOYACA","GUACAMAYAS",15317,false]
["VALLE DEL CAUCA","GUACARI",76318,false]
["CAUCA","GUACHENE",19300,false]
["CUNDINAMARCA","GUACHETA",25317,false]
["NARIÑO","GUACHUCAL",52317,false]
["VALLE DEL CAUCA","GUADALAJARA DE BUGA",76111,false]
["ANTIOQUIA","GUADALUPE - ANTIOQUIA",5315,false]
["HUILA","GUADALUPE - HUILA",41319,false]
["SANTANDER","GUADALUPE - SANTANDER",68320,false]
["CUNDINAMARCA","GUADUAS",25320,false]
["GUAINIA","GUAINIA",94999,false]
["NARIÑO","GUAITARILLA",52320,false]
["NARIÑO","GUALMATAN",52323,false]
["MAGDALENA","GUAMAL - MAGDALENA",47318,false]
["META","GUAMAL - META",50318,false]
["TOLIMA","GUAMO",73319,false]
["CAUCA","GUAPI",19318,false]
["SANTANDER","GUAPOTA",68322,false]
["SUCRE","GUARANDA",70265,false]
["ANTIOQUIA","GUARNE",5318,false]
["CUNDINAMARCA","GUASCA",25322,false]
["ANTIOQUIA","GUATAPE",5321,false]
["CUNDINAMARCA","GUATAQUI",25324,false]
["CUNDINAMARCA","GUATAVITA",25326,false]
["BOYACA","GUATEQUE",15322,false]
["RISARALDA","GUATICA",66318,false]
["SANTANDER","GUAVATA",68324,false]
["GUAVIARE","GUAVIARE",95999,false]
["CUNDINAMARCA","GUAYABAL DE SIQUIMA",25328,false]
["CUNDINAMARCA","GUAYABETAL",25335,false]
["BOYACA","GUAYATA",15325,false]
["CUNDINAMARCA","GUTIERREZ",25339,false]
["N. DE SANTANDER","HACARI",54344,false]
["BOLIVAR","HATILLO DE LOBA",13300,false]
["SANTANDER","HATO",68344,false]
["CASANARE","HATO COROZAL",85125,false]
["LA GUAJIRA","HATONUEVO",44378,false]
["ANTIOQUIA","HELICONIA",5347,false]
["N. DE SANTANDER","HERRAN",54347,false]
["TOLIMA","HERVEO",73347,false]
["ANTIOQUIA","HISPANIA",5353,false]
["HUILA","HOBO",41349,false]
["TOLIMA","HONDA",73349,false]
["HUILA","HUILA",41999,false]
["TOLIMA","IBAGUE",73001,false]
["TOLIMA","ICONONZO",73352,false]
["NARIÑO","ILES",52352,false]
["NARIÑO","IMUES",52354,false]
["GUAINIA","INIRIDA",94001,false]
["CAUCA","INZA",19355,false]
["NARIÑO","IPIALES",52356,false]
["HUILA","IQUIRA",41357,false]
["HUILA","ISNOS",41359,false]
["CHOCO","ISTMINA",27361,false]
["ANTIOQUIA","ITAGUI",5360,false]
["ANTIOQUIA","ITUANGO",5361,false]
["BOYACA","IZA",15362,false]
["CAUCA","JAMBALO",19364,false]
["VALLE DEL CAUCA","JAMUNDI",76364,false]
["ANTIOQUIA","JARDIN",5364,false]
["BOYACA","JENESANO",15367,false]
["ANTIOQUIA","JERICO - ANTIOQUIA",5368,false]
["BOYACA","JERICO - BOYACA",15368,false]
["CUNDINAMARCA","JERUSALEN",25368,false]
["SANTANDER","JESUS MARIA",68368,false]
["SANTANDER","JORDAN",68370,false]
["ATLANTICO","JUAN DE ACOSTA",8372,false]
["CUNDINAMARCA","JUNIN",25372,false]
["CHOCO","JURADO",27372,false]
["CORDOBA","LA APARTADA",23350,false]
["HUILA","LA ARGENTINA",41378,false]
["SANTANDER","LA BELLEZA",68377,false]
["CUNDINAMARCA","LA CALERA",25377,false]
["BOYACA","LA CAPILLA",15380,false]
["ANTIOQUIA","LA CEJA",5376,false]
["RISARALDA","LA CELIA",66383,false]
["AMAZONAS","LA CHORRERA",91405,false]
["NARIÑO","LA CRUZ",52378,false]
["VALLE DEL CAUCA","LA CUMBRE",76377,false]
["CALDAS","LA DORADA",17380,false]
["N. DE SANTANDER","LA ESPERANZA",54385,false]
["ANTIOQUIA","LA ESTRELLA",5380,false]
["NARIÑO","LA FLORIDA",52381,false]
["CESAR","LA GLORIA",20383,false]
["GUAINIA","LA GUADALUPE",94885,false]
["LA GUAJIRA","LA GUAJIRA",44999,false]
["CESAR","LA JAGUA DE IBIRICO",20400,false]
["LA GUAJIRA","LA JAGUA DEL PILAR",44420,false]
["NARIÑO","LA LLANADA",52385,false]
["META","LA MACARENA",50350,false]
["CALDAS","LA MERCED",17388,false]
["CUNDINAMARCA","LA MESA",25386,false]
["CAQUETA","LA MONTAÑITA",18410,false]
["CUNDINAMARCA","LA PALMA",25394,false]
["CESAR","LA PAZ - CESAR",20621,false]
["SANTANDER","LA PAZ - SANTANDER",68397,false]
["AMAZONAS","LA PEDRERA",91407,false]
["CUNDINAMARCA","LA PEÑA",25398,false]
["ANTIOQUIA","LA PINTADA",5390,false]
["HUILA","LA PLATA",41396,false]
["N. DE SANTANDER","LA PLAYA",54398,false]
["VICHADA","LA PRIMAVERA",99524,false]
["CASANARE","LA SALINA",85136,false]
["CAUCA","LA SIERRA",19392,false]
["QUINDIO","LA TEBAIDA",63401,false]
["NARIÑO","LA TOLA",52390,false]
["ANTIOQUIA","LA UNION - ANTIOQUIA",5400,false]
["NARIÑO","LA UNION - NARIÑO",52399,false]
["SUCRE","LA UNION - SUCRE",70400,false]
["VALLE DEL CAUCA","LA UNION - VALLE DEL CAUCA",76400,false]
["BOYACA","LA UVITA",15403,false]
["CAUCA","LA VEGA - CAUCA",19397,false]
["CUNDINAMARCA","LA VEGA - CUNDIMARCA",25402,false]
["BOYACA","LA VICTORIA - BOYACA",15401,false]
["VALLE DEL CAUCA","LA VICTORIA - VALLE DEL CAUCA",76403,false]
["AMAZONAS","LA VICTORIA - AMAZONAS",91430,false]
["RISARALDA","LA VIRGINIA",66400,false]
["N. DE SANTANDER","LABATECA",54377,false]
["BOYACA","LABRANZAGRANDE",15377,false]
["SANTANDER","LANDAZURI",68385,false]
["SANTANDER","LEBRIJA",68406,false]
["PUTUMAYO","LEGUIZAMO",86573,false]
["NARIÑO","LEIVA",52405,false]
["META","LEJANIAS",50400,false]
["CUNDINAMARCA","LENGUAZAQUE",25407,false]
["TOLIMA","LERIDA",73408,false]
["AMAZONAS","LETICIA",91001,false]
["TOLIMA","LIBANO",73411,false]
["ANTIOQUIA","LIBORINA",5411,false]
["NARIÑO","LINARES",52411,false]
["CHOCO","LLORO",27413,false]
["CAUCA","LOPEZ",19418,false]
["CORDOBA","LORICA",23417,false]
["NARIÑO","LOS ANDES",52418,false]
["CORDOBA","LOS CORDOBAS",23419,false]
["SUCRE","LOS PALMITOS",70418,false]
["N. DE SANTANDER","LOS PATIOS",54405,false]
["SANTANDER","LOS SANTOS",68418,false]
["N. DE SANTANDER","LOURDES",54418,false]
["ATLANTICO","LURUACO",8421,false]
["BOYACA","MACANAL",15425,false]
["SANTANDER","MACARAVITA",68425,false]
["ANTIOQUIA","MACEO",5425,false]
["CUNDINAMARCA","MACHETA",25426,false]
["CUNDINAMARCA","MADRID",25430,false]
["BOLIVAR","MAGANGUE",13430,false]
["MAGDALENA","MAGDALENA",47999,false]
["NARIÑO","MAGsI",52427,false]
["BOLIVAR","MAHATES",13433,false]
["LA GUAJIRA","MAICAO",44430,false]
["SUCRE","MAJAGUAL",70429,false]
["SANTANDER","MALAGA",68432,false]
["ATLANTICO","MALAMBO",8433,false]
["NARIÑO","MALLAMA",52435,false]
["ATLANTICO","MANATI",8436,false]
["CESAR","MANAURE - CESAR",20443,false]
["LA GUAJIRA","MANAURE - LA GUAJIRA",44560,false]
["CASANARE","MANI",85139,false]
["CALDAS","MANIZALES",17001,false]
["CUNDINAMARCA","MANTA",25436,false]
["CALDAS","MANZANARES",17433,false]
["META","MAPIRIPAN",50325,false]
["GUAINIA","MAPIRIPANA",94663,false]
["BOLIVAR","MARGARITA",13440,false]
["BOLIVAR","MARIA LA BAJA",13442,false]
["ANTIOQUIA","MARINILLA",5440,false]
["BOYACA","MARIPI",15442,false]
["TOLIMA","MARIQUITA",73443,false]
["CALDAS","MARMATO",17442,false]
["CALDAS","MARQUETALIA",17444,false]
["RISARALDA","MARSELLA",66440,false]
["CALDAS","MARULANDA",17446,false]
["SANTANDER","MATANZA",68444,false]
["ANTIOQUIA","MEDELLIN",5001,false]
["CUNDINAMARCA","MEDINA",25438,false]
["CHOCO","MEDIO ATRATO",27425,false]
["CHOCO","MEDIO BAUDO",27430,false]
["CHOCO","MEDIO SAN JUAN",27450,false]
["TOLIMA","MELGAR",73449,false]
["CAUCA","MERCADERES",19450,false]
["META","MESETAS",50330,false]
["META","META",50999,false]
["CAQUETA","MILAN",18460,false]
["BOYACA","MIRAFLORES - BOYACA",15455,false]
["GUAVIARE","MIRAFLORES - GUAVIARE",95200,false]
["CAUCA","MIRANDA",19455,false]
["AMAZONAS","MIRITI - PARANA",91460,false]
["RISARALDA","MISTRATO",66456,false]
["VAUPES","MITU",97001,false]
["PUTUMAYO","MOCOA",86001,false]
["SANTANDER","MOGOTES",68464,false]
["SANTANDER","MOLAGAVITA",68468,false]
["CORDOBA","MOMIL",23464,false]
["BOLIVAR","MOMPOS",13468,false]
["BOYACA","MONGUA",15464,false]
["BOYACA","MONGUI",15466,false]
["BOYACA","MONIQUIRA",15469,false]
["ANTIOQUIA","MONTEBELLO",5467,false]
["BOLIVAR","MONTECRISTO",13458,false]
["CORDOBA","MONTELIBANO",23466,false]
["QUINDIO","MONTENEGRO",63470,false]
["CORDOBA","MONTERIA",23001,false]
["CASANARE","MONTERREY",85162,false]
["CORDOBA","MOÑITOS",23500,false]
["BOLIVAR","MORALES - BOLIVAR",13473,false]
["CAUCA","MORALES - CAUCA",19473,false]
["CAQUETA","MORELIA",18479,false]
["GUAINIA","MORICHAL",94888,false]
["SUCRE","MORROA",70473,false]
["CUNDINAMARCA","MOSQUERA - CUNDINAMARCA",25473,false]
["NARIÑO","MOSQUERA - NARIÑO",52473,false]
["BOYACA","MOTAVITA",15476,false]
["TOLIMA","MURILLO",73461,false]
["ANTIOQUIA","MURINDO",5475,false]
["ANTIOQUIA","MUTATA",5480,false]
["N. DE SANTANDER","MUTISCUA",54480,false]
["BOYACA","MUZO",15480,false]
["ANTIOQUIA","NARIÑO - ANTIOQUIA",5483,false]
["CUNDINAMARCA","NARIÑO - CUNDINAMARCA",25483,false]
["NARIÑO","NARIÑO - MUNICIPIO",52480,false]
["NARIÑO","NARIÑO - DPTO.",52999,false]
["HUILA","NATAGA",41483,false]
["TOLIMA","NATAGAIMA",73483,false]
["ANTIOQUIA","NECHI",5495,false]
["ANTIOQUIA","NECOCLI",5490,false]
["CALDAS","NEIRA",17486,false]
["HUILA","NEIVA",41001,false]
["CUNDINAMARCA","NEMOCON",25486,false]
["CUNDINAMARCA","NILO",25488,false]
["CUNDINAMARCA","NIMAIMA",25489,false]
["BOYACA","NOBSA",15491,false]
["CUNDINAMARCA","NOCAIMA",25491,false]
["CALDAS","NORCASIA",17495,false]
["BOLIVAR","NOROSI",13490,false]
["NORTE DE SANTANDER","NORTE DE SANTANDER",54999,false]
["CHOCO","NOVITA",27491,false]
["MAGDALENA","NUEVA GRANADA",47460,false]
["BOYACA","NUEVO COLON",15494,false]
["CASANARE","NUNCHIA",85225,false]
["CHOCO","NUQUI",27495,false]
["VALLE DEL CAUCA","OBANDO",76497,false]
["SANTANDER","OCAMONTE",68498,false]
["N. DE SANTANDER","OCAÑA",54498,false]
["SANTANDER","OIBA",68500,false]
["BOYACA","OICATA",15500,false]
["ANTIOQUIA","OLAYA",5501,false]
["NARIÑO","OLAYA HERRERA",52490,false]
["SANTANDER","ONZAGA",68502,false]
["HUILA","OPORAPA",41503,false]
["PUTUMAYO","ORITO",86320,false]
["CASANARE","OROCUE",85230,false]
["TOLIMA","ORTEGA",73504,false]
["NARIÑO","OSPINA",52506,false]
["BOYACA","OTANCHE",15507,false]
["SUCRE","OVEJAS",70508,false]
["BOYACA","PACHAVITA",15511,false]
["CUNDINAMARCA","PACHO",25513,false]
["VAUPES","PACOA",97511,false]
["CALDAS","PACORA",17513,false]
["CAUCA","PADILLA",19513,false]
["BOYACA","PAEZ - BOYACA",15514,false]
["CAUCA","PAEZ - CAUCA",19517,false]
["HUILA","PAICOL",41518,false]
["CESAR","PAILITAS",20517,false]
["CUNDINAMARCA","PAIME",25518,false]
["BOYACA","PAIPA",15516,false]
["BOYACA","PAJARITO",15518,false]
["HUILA","PALERMO",41524,false]
["CALDAS","PALESTINA - CALDAS",17524,false]
["HUILA","PALESTINA - HUILA",41530,false]
["SANTANDER","PALMAR",68522,false]
["ATLANTICO","PALMAR DE VARELA",8520,false]
["SANTANDER","PALMAS DEL SOCORRO",68524,false]
["VALLE DEL CAUCA","PALMIRA",76520,false]
["SUCRE","PALMITO",70523,false]
["TOLIMA","PALOCABILDO",73520,false]
["N. DE SANTANDER","PAMPLONA",54518,false]
["N. DE SANTANDER","PAMPLONITA",54520,false]
["GUAINIA","PANA PANA",94887,false]
["CUNDINAMARCA","PANDI",25524,false]
["BOYACA","PANQUEBA",15522,false]
["VAUPES","PAPUNAUA",97777,false]
["SANTANDER","PARAMO",68533,false]
["CUNDINAMARCA","PARATEBUENO",25530,false]
["CUNDINAMARCA","PASCA",25535,false]
["NARIÑO","PASTO",52001,false]
["CAUCA","PATIA",19532,false]
["BOYACA","PAUNA",15531,false]
["BOYACA","PAYA",15533,false]
["CASANARE","PAZ DE ARIPORO",85250,false]
["BOYACA","PAZ DE RIO",15537,false]
["ANTIOQUIA","PEÐOL",5541,false]
["MAGDALENA","PEDRAZA",47541,false]
["CESAR","PELAYA",20550,false]
["CALDAS","PENSILVANIA",17541,false]
["ANTIOQUIA","PEQUE",5543,false]
["RISARALDA","PEREIRA",66001,false]
["BOYACA","PESCA",15542,false]
["CAUCA","PIAMONTE",19533,false]
["SANTANDER","PIEDECUESTA",68547,false]
["TOLIMA","PIEDRAS",73547,false]
["CAUCA","PIENDAMO",19548,false]
["QUINDIO","PIJAO",63548,false]
["MAGDALENA","PIJIÑO DEL CARMEN",47545,false]
["SANTANDER","PINCHOTE",68549,false]
["BOLIVAR","PINILLOS",13549,false]
["ATLANTICO","PIOJO",8549,false]
["BOYACA","PISBA",15550,false]
["HUILA","PITAL",41548,false]
["HUILA","PITALITO",41551,false]
["MAGDALENA","PIVIJAY",47551,false]
["TOLIMA","PLANADAS",73555,false]
["CORDOBA","PLANETA RICA",23555,false]
["MAGDALENA","PLATO",47555,false]
["NARIÑO","POLICARPA",52540,false]
["ATLANTICO","POLONUEVO",8558,false]
["ATLANTICO","PONEDERA",8560,false]
["CAUCA","POPAYAN",19001,false]
["CASANARE","PORE",85263,false]
["NARIÑO","POTOSI",52560,false]
["VALLE DEL CAUCA","PRADERA",76563,false]
["TOLIMA","PRADO",73563,false]
["NARIÑO","PROVIDENCIA - NARIÑO",52565,false]
["SAN ANDRES","PROVIDENCIA - SAN ANDRES",88564,false]
["CESAR","PUEBLO BELLO",20570,false]
["CORDOBA","PUEBLO NUEVO",23570,false]
["RISARALDA","PUEBLO RICO",66572,false]
["ANTIOQUIA","PUEBLORRICO",5576,false]
["MAGDALENA","PUEBLOVIEJO",47570,false]
["SANTANDER","PUENTE NACIONAL",68572,false]
["NARIÑO","PUERRES",52573,false]
["AMAZONAS","PUERTO ALEGRIA",91530,false]
["AMAZONAS","PUERTO ARICA",91536,false]
["PUTUMAYO","PUERTO ASIS",86568,false]
["ANTIOQUIA","PUERTO BERRIO",5579,false]
["BOYACA","PUERTO BOYACA",15572,false]
["PUTUMAYO","PUERTO CAICEDO",86569,false]
["VICHADA","PUERTO CARREÑO",99001,false]
["ATLANTICO","PUERTO COLOMBIA - ATLANTICO",8573,false]
["GUAINIA","PUERTO COLOMBIA - GUAINIA",94884,false]
["META","PUERTO CONCORDIA",50450,false]
["CORDOBA","PUERTO ESCONDIDO",23574,false]
["META","PUERTO GAITAN",50568,false]
["PUTUMAYO","PUERTO GUZMAN",86571,false]
["CORDOBA","PUERTO LIBERTADOR",23580,false]
["META","PUERTO LLERAS",50577,false]
["META","PUERTO LOPEZ",50573,false]
["ANTIOQUIA","PUERTO NARE",5585,false]
["AMAZONAS","PUERTO NARIÑO",91540,false]
["SANTANDER","PUERTO PARRA",68573,false]
["CAQUETA","PUERTO RICO - CAQUETA",18592,false]
["META","PUERTO RICO - META",50590,false]
["ARAUCA","PUERTO RONDON",81591,false]
["CUNDINAMARCA","PUERTO SALGAR",25572,false]
["N. DE SANTANDER","PUERTO SANTANDER - NTE SANTANDER",54553,false]
["AMAZONAS","PUERTO SANTANDER - AMAZONAS",91669,false]
["CAUCA","PUERTO TEJADA",19573,false]
["ANTIOQUIA","PUERTO TRIUNFO",5591,false]
["SANTANDER","PUERTO WILCHES",68575,false]
["CUNDINAMARCA","PULI",25580,false]
["NARIÑO","PUPIALES",52585,false]
["CAUCA","PURACE",19585,false]
["TOLIMA","PURIFICACION",73585,false]
["CORDOBA","PURISIMA",23586,false]
["PUTUMAYO","PUTUMAYO",86999,false]
["CUNDINAMARCA","QUEBRADANEGRA",25592,false]
["CUNDINAMARCA","QUETAME",25594,false]
["CHOCO","QUIBDO",27001,false]
["QUINDIO","QUIMBAYA",63594,false]
["RISARALDA","QUINCHIA",66594,false]
["QUINDIO","QUINDIO",63999,false]
["BOYACA","QUIPAMA",15580,false]
["CUNDINAMARCA","QUIPILE",25596,false]
["N. DE SANTANDER","RAGONVALIA",54599,false]
["BOYACA","RAMIRIQUI",15599,false]
["BOYACA","RAQUIRA",15600,false]
["CASANARE","RECETOR",85279,false]
["BOLIVAR","REGIDOR",13580,false]
["ANTIOQUIA","REMEDIOS",5604,false]
["MAGDALENA","REMOLINO",47605,false]
["ATLANTICO","REPELON",8606,false]
["META","RESTREPO - META",50606,false]
["VALLE DEL CAUCA","RESTREPO - VALLE DEL CAUCA",76606,false]
["ANTIOQUIA","RETIRO",5607,false]
["CUNDINAMARCA","RICAURTE - CUNDINAMARCA",25612,false]
["NARIÑO","RICAURTE - NARIÑO",52612,false]
["CESAR","RIO DE ORO",20614,false]
["CHOCO","RIO IRO",27580,false]
["CHOCO","RIO QUITO",27600,false]
["BOLIVAR","RIO VIEJO",13600,false]
["TOLIMA","RIOBLANCO",73616,false]
["VALLE DEL CAUCA","RIOFRIO",76616,false]
["LA GUAJIRA","RIOHACHA",44001,false]
["ANTIOQUIA","RIONEGRO - ANTIOQUIA",5615,false]
["SANTANDER","RIONEGRO - SANTANDER",68615,false]
["CALDAS","RIOSUCIO",17614,false]
["CHOCO","RIOSUCIO",27615,false]
["CALDAS","RISARALDA - CALDAS",17616,false]
["RISARALDA","RISARALDA - RISARALDA",66999,false]
["HUILA","RIVERA",41615,false]
["NARIÑO","ROBERTO PAYAN",52621,false]
["VALLE DEL CAUCA","ROLDANILLO",76622,false]
["TOLIMA","RONCESVALLES",73622,false]
["BOYACA","RONDON",15621,false]
["CAUCA","ROSAS",19622,false]
["TOLIMA","ROVIRA",73624,false]
["SANTANDER","SABANA DE TORRES",68655,false]
["ATLANTICO","SABANAGRANDE",8634,false]
["ANTIOQUIA","SABANALARGA - ANTIOQUIA",5628,false]
["ATLANTICO","SABANALARGA - ATLANTICO",8638,false]
["CASANARE","SABANALARGA",85300,false]
["MAGDALENA","SABANAS DE SAN ANGEL",47660,false]
["ANTIOQUIA","SABANETA",5631,false]
["BOYACA","SABOYA",15632,false]
["CASANARE","SACAMA",85315,false]
["BOYACA","SACHICA",15638,false]
["CORDOBA","SAHAGUN",23660,false]
["HUILA","SALADOBLANCO",41660,false]
["CALDAS","SALAMINA - CALDAS",17653,false]
["MAGDALENA","SALAMINA - MAGDALENA",47675,false]
["N. DE SANTANDER","SALAZAR",54660,false]
["TOLIMA","SALDAÑA",73671,false]
["QUINDIO","SALENTO",63690,false]
["ANTIOQUIA","SALGAR",5642,false]
["BOYACA","SAMACA",15646,false]
["CALDAS","SAMANA",17662,false]
["NARIÑO","SAMANIEGO",52678,false]
["SUCRE","SAMPUES",70670,false]
["HUILA","SAN AGUSTIN",41668,false]
["CESAR","SAN ALBERTO",20710,false]
["SANTANDER","SAN ANDRES - SANTANDER",68669,false]
["SAN ANDRES","SAN ANDRES - MUNICIPIO",88001,false]
["SAN ANDRES","SAN ANDRES - DPTO.",88999,false]
["ANTIOQUIA","SAN ANDRES DE CUERQUIA",5647,false]
["NARIÑO","SAN ANDRES DE TUMACO",52835,false]
["CORDOBA","SAN ANDRES SOTAVENTO",23670,false]
["CORDOBA","SAN ANTERO",23672,false]
["TOLIMA","SAN ANTONIO",73675,false]
["CUNDINAMARCA","SAN ANTONIO DEL TEQUENDAMA",25645,false]
["SANTANDER","SAN BENITO",68673,false]
["SUCRE","SAN BENITO ABAD",70678,false]
["CUNDINAMARCA","SAN BERNARDO - CUNDINAMARCA",25649,false]
["NARIÑO","SAN BERNARDO - NARIÑO",52685,false]
["CORDOBA","SAN BERNARDO DEL VIENTO",23675,false]
["N. DE SANTANDER","SAN CALIXTO",54670,false]
["ANTIOQUIA","SAN CARLOS - ANTIOQUIA",5649,false]
["CORDOBA","SAN CARLOS - CORDOBA",23678,false]
["META","SAN CARLOS DE GUAROA",50680,false]
["CUNDINAMARCA","SAN CAYETANO - CUNDINAMARCA",25653,false]
["N. DE SANTANDER","SAN CAYETANO - NTE DE SANTANDER",54673,false]
["BOLIVAR","SAN CRISTOBAL",13620,false]
["CESAR","SAN DIEGO",20750,false]
["BOYACA","SAN EDUARDO",15660,false]
["BOLIVAR","SAN ESTANISLAO",13647,false]
["GUAINIA","SAN FELIPE",94883,false]
["BOLIVAR","SAN FERNANDO",13650,false]
["ANTIOQUIA","SAN FRANCISCO - ANTIOQUIA",5652,false]
["CUNDINAMARCA","SAN FRANCISCO - CUNDINAMARCA",25658,false]
["PUTUMAYO","SAN FRANCISCO - PUTUMAYO",86755,false]
["SANTANDER","SAN GIL",68679,false]
["BOLIVAR","SAN JACINTO",13654,false]
["BOLIVAR","SAN JACINTO DEL CAUCA",13655,false]
["ANTIOQUIA","SAN JERONIMO",5656,false]
["SANTANDER","SAN JOAQUIN",68682,false]
["CALDAS","SAN JOSE",17665,false]
["ANTIOQUIA","SAN JOSE DE LA MONTAÑA",5658,false]
["SANTANDER","SAN JOSE DE MIRANDA",68684,false]
["BOYACA","SAN JOSE DE PARE",15664,false]
["CAQUETA","SAN JOSE DEL FRAGUA",18610,false]
["GUAVIARE","SAN JOSE DEL GUAVIARE",95001,false]
["CHOCO","SAN JOSE DEL PALMAR",27660,false]
["META","SAN JUAN DE ARAMA",50683,false]
["SUCRE","SAN JUAN DE BETULIA",70702,false]
["CUNDINAMARCA","SAN JUAN DE RIO SECO",25662,false]
["ANTIOQUIA","SAN JUAN DE URABA",5659,false]
["LA GUAJIRA","SAN JUAN DEL CESAR",44650,false]
["BOLIVAR","SAN JUAN NEPOMUCENO",13657,false]
["META","SAN JUANITO",50686,false]
["NARIÑO","SAN LORENZO",52687,false]
["ANTIOQUIA","SAN LUIS - ANTIOQUIA",5660,false]
["TOLIMA","SAN LUIS - TOLIMA",73678,false]
["BOYACA","SAN LUIS DE GACENO",15667,false]
["CASANARE","SAN LUIS DE PALENQUE",85325,false]
["SUCRE","SAN LUIS DE SINCE",70742,false]
["SUCRE","SAN MARCOS",70708,false]
["CESAR","SAN MARTIN - CESAR",20770,false]
["META","SAN MARTIN - META",50689,false]
["BOLIVAR","SAN MARTIN DE LOBA",13667,false]
["BOYACA","SAN MATEO",15673,false]
["SANTANDER","SAN MIGUEL - SANTANDER",68686,false]
["PUTUMAYO","SAN MIGUEL - PUTUMAYO",86757,false]
["BOYACA","SAN MIGUEL DE SEMA",15676,false]
["SUCRE","SAN ONOFRE",70713,false]
["BOLIVAR","SAN PABLO - BOLIVAR",13670,false]
["NARIÑO","SAN PABLO - NARIÑO",52693,false]
["BOYACA","SAN PABLO DE BORBUR",15681,false]
["ANTIOQUIA","SAN PEDRO - ANTIOQUIA",5664,false]
["SUCRE","SAN PEDRO - SUCRE",70717,false]
["VALLE DEL CAUCA","SAN PEDRO - VALLE DEL CAUCA",76670,false]
["NARIÑO","SAN PEDRO DE CARTAGO",52694,false]
["ANTIOQUIA","SAN PEDRO DE URABA",5665,false]
["CORDOBA","SAN PELAYO",23686,false]
["ANTIOQUIA","SAN RAFAEL",5667,false]
["ANTIOQUIA","SAN ROQUE",5670,false]
["CAUCA","SAN SEBASTIAN",19693,false]
["MAGDALENA","SAN SEBASTIAN DE BUENAVISTA",47692,false]
["ANTIOQUIA","SAN VICENTE",5674,false]
["SANTANDER","SAN VICENTE DE CHUCURI",68689,false]
["CAQUETA","SAN VICENTE DEL CAGUAN",18753,false]
["MAGDALENA","SAN ZENON",47703,false]
["NARIÑO","SANDONA",52683,false]
["MAGDALENA","SANTA ANA",47707,false]
["ANTIOQUIA","SANTA BARBARA - ANTIOQUIA",5679,false]
["NARIÑO","SANTA BARBARA - NARIÑO",52696,false]
["SANTANDER","SANTA BARBARA - SANTANDER",68705,false]
["MAGDALENA","SANTA BARBARA DE PINTO",47720,false]
["BOLIVAR","SANTA CATALINA",13673,false]
["SANTANDER","SANTA HELENA DEL OPON",68720,false]
["TOLIMA","SANTA ISABEL",73686,false]
["ATLANTICO","SANTA LUCIA",8675,false]
["BOYACA","SANTA MARIA - BOYACA",15690,false]
["HUILA","SANTA MARIA - HUILA",41676,false]
["MAGDALENA","SANTA MARTA",47001,false]
["BOLIVAR","SANTA ROSA - BOLIVAR",13683,false]
["CAUCA","SANTA ROSA - CAUCA",19701,false]
["RISARALDA","SANTA ROSA DE CABAL",66682,false]
["ANTIOQUIA","SANTA ROSA DE OSOS",5686,false]
["BOYACA","SANTA ROSA DE VITERBO",15693,false]
["BOLIVAR","SANTA ROSA DEL SUR",13688,false]
["VICHADA","SANTA ROSALIA",99624,false]
["VICHADA","SANTA ROSALÍA",99624,false]
["BOYACA","SANTA SOFIA",15696,false]
["NARIÑO","SANTACRUZ",52699,false]
["ANTIOQUIA","SANTAFE DE ANTIOQUIA",5042,false]
["BOYACA","SANTANA",15686,false]
["SANTANDER","SANTANDER",68999,false]
["CAUCA","SANTANDER DE QUILICHAO",19698,false]
["N. DE SANTANDER","SANTIAGO - NTE SANTANDER",54680,false]
["PUTUMAYO","SANTIAGO - PUTUMAYO",86760,false]
["SUCRE","SANTIAGO DE TOLU",70820,false]
["ANTIOQUIA","SANTO DOMINGO",5690,false]
["ATLANTICO","SANTO TOMAS",8685,false]
["RISARALDA","SANTUARIO",66687,false]
["NARIÑO","SAPUYES",52720,false]
["ARAUCA","SARAVENA",81736,false]
["N. DE SANTANDER","SARDINATA",54720,false]
["CUNDINAMARCA","SASAIMA",25718,false]
["BOYACA","SATIVANORTE",15720,false]
["BOYACA","SATIVASUR",15723,false]
["ANTIOQUIA","SEGOVIA",5736,false]
["CUNDINAMARCA","SESQUILE",25736,false]
["VALLE DEL CAUCA","SEVILLA",76736,false]
["BOYACA","SIACHOQUE",15740,false]
["CUNDINAMARCA","SIBATE",25740,false]
["PUTUMAYO","SIBUNDOY",86749,false]
["N. DE SANTANDER","SILOS",54743,false]
["CUNDINAMARCA","SILVANIA",25743,false]
["CAUCA","SILVIA",19743,false]
["SANTANDER","SIMACOTA",68745,false]
["CUNDINAMARCA","SIMIJACA",25745,false]
["BOLIVAR","SIMITI",13744,false]
["SUCRE","SINCELEJO",70001,false]
["CHOCO","SIPI",27745,false]
["MAGDALENA","SITIONUEVO",47745,false]
["CUNDINAMARCA","SOACHA",25754,false]
["BOYACA","SOATA",15753,false]
["BOYACA","SOCHA",15757,false]
["SANTANDER","SOCORRO",68755,false]
["BOYACA","SOCOTA",15755,false]
["BOYACA","SOGAMOSO",15759,false]
["CAQUETA","SOLANO",18756,false]
["ATLANTICO","SOLEDAD",8758,false]
["CAQUETA","SOLITA",18785,false]
["BOYACA","SOMONDOCO",15761,false]
["ANTIOQUIA","SONSON",5756,false]
["ANTIOQUIA","SOPETRAN",5761,false]
["BOLIVAR","SOPLAVIENTO",13760,false]
["CUNDINAMARCA","SOPO",25758,false]
["BOYACA","SORA",15762,false]
["BOYACA","SORACA",15764,false]
["BOYACA","SOTAQUIRA",15763,false]
["CAUCA","SOTARA",19760,false]
["SANTANDER","SUAITA",68770,false]
["ATLANTICO","SUAN",8770,false]
["CAUCA","SUAREZ - CAUCA",19780,false]
["TOLIMA","SUAREZ - TOLIMA",73770,false]
["HUILA","SUAZA",41770,false]
["CUNDINAMARCA","SUBACHOQUE",25769,false]
["CAUCA","SUCRE - CAUCA",19785,false]
["SANTANDER","SUCRE - SANTANDER",68773,false]
["SUCRE","SUCRE - MUNICIPIO",70771,false]
["SUCRE","SUCRE - DPTO.",70999,false]
["CUNDINAMARCA","SUESCA",25772,false]
["CUNDINAMARCA","SUPATA",25777,false]
["CALDAS","SUPIA",17777,false]
["SANTANDER","SURATA",68780,false]
["CUNDINAMARCA","SUSA",25779,false]
["BOYACA","SUSACON",15774,false]
["BOYACA","SUTAMARCHAN",15776,false]
["CUNDINAMARCA","SUTATAUSA",25781,false]
["BOYACA","SUTATENZA",15778,false]
["CUNDINAMARCA","TABIO",25785,false]
["CHOCO","TADO",27787,false]
["BOLIVAR","TALAIGUA NUEVO",13780,false]
["CESAR","TAMALAMEQUE",20787,false]
["CASANARE","TAMARA",85400,false]
["ARAUCA","TAME",81794,false]
["ANTIOQUIA","TAMESIS",5789,false]
["NARIÑO","TAMINANGO",52786,false]
["NARIÑO","TANGUA",52788,false]
["VAUPES","TARAIRA",97666,false]
["AMAZONAS","TARAPACA",91798,false]
["ANTIOQUIA","TARAZA",5790,false]
["HUILA","TARQUI",41791,false]
["ANTIOQUIA","TARSO",5792,false]
["BOYACA","TASCO",15790,false]
["CASANARE","TAURAMENA",85410,false]
["CUNDINAMARCA","TAUSA",25793,false]
["HUILA","TELLO",41799,false]
["CUNDINAMARCA","TENA",25797,false]
["MAGDALENA","TENERIFE",47798,false]
["CUNDINAMARCA","TENJO",25799,false]
["BOYACA","TENZA",15798,false]
["N. DE SANTANDER","TEORAMA",54800,false]
["HUILA","TERUEL",41801,false]
["HUILA","TESALIA",41797,false]
["CUNDINAMARCA","TIBACUY",25805,false]
["BOYACA","TIBANA",15804,false]
["BOYACA","TIBASOSA",15806,false]
["CUNDINAMARCA","TIBIRITA",25807,false]
["N. DE SANTANDER","TIBU",54810,false]
["CORDOBA","TIERRALTA",23807,false]
["HUILA","TIMANA",41807,false]
["CAUCA","TIMBIO",19807,false]
["CAUCA","TIMBIQUI",19809,false]
["BOYACA","TINJACA",15808,false]
["BOYACA","TIPACOQUE",15810,false]
["BOLIVAR","TIQUISIO",13810,false]
["ANTIOQUIA","TITIRIBI",5809,false]
["BOYACA","TOCA",15814,false]
["CUNDINAMARCA","TOCAIMA",25815,false]
["CUNDINAMARCA","TOCANCIPA",25817,false]
["BOYACA","TOGSI",15816,false]
["ANTIOQUIA","TOLEDO-ANTIOQUIA",5819,false]
["N. DE SANTANDER","TOLEDO- NTE SANTANDER",54820,false]
["TOLIMA","TOLIMA",73999,false]
["SUCRE","TOLU VIEJO",70823,false]
["SANTANDER","TONA",68820,false]
["BOYACA","TOPAGA",15820,false]
["CUNDINAMARCA","TOPAIPI",25823,false]
["CAUCA","TORIBIO",19821,false]
["VALLE DEL CAUCA","TORO",76823,false]
["BOYACA","TOTA",15822,false]
["CAUCA","TOTORO",19824,false]
["CASANARE","TRINIDAD",85430,false]
["VALLE DEL CAUCA","TRUJILLO",76828,false]
["ATLANTICO","TUBARA",8832,false]
["VALLE DEL CAUCA","TULUA",76834,false]
["BOYACA","TUNJA",15001,false]
["BOYACA","TUNUNGUA",15832,false]
["NARIÑO","TUQUERRES",52838,false]
["BOLIVAR","TURBACO",13836,false]
["BOLIVAR","TURBANA",13838,false]
["ANTIOQUIA","TURBO",5837,false]
["BOYACA","TURMEQUE",15835,false]
["BOYACA","TUTA",15837,false]
["BOYACA","TUTAZA",15839,false]
["CUNDINAMARCA","UBALA",25839,false]
["CUNDINAMARCA","UBAQUE",25841,false]
["VALLE DEL CAUCA","ULLOA",76845,false]
["BOYACA","UMBITA",15842,false]
["CUNDINAMARCA","UNE",25845,false]
["CHOCO","UNGUIA",27800,false]
["CHOCO","UNION PANAMERICANA",27810,false]
["ANTIOQUIA","URAMITA",5842,false]
["META","URIBE",50370,false]
["LA GUAJIRA","URIBIA",44847,false]
["ANTIOQUIA","URRAO",5847,false]
["LA GUAJIRA","URUMITA",44855,false]
["ATLANTICO","USIACURI",8849,false]
["CUNDINAMARCA","UTICA",25851,false]
["ANTIOQUIA","VALDIVIA",5854,false]
["CORDOBA","VALENCIA",23855,false]
["SANTANDER","VALLE DE SAN JOSE",68855,false]
["TOLIMA","VALLE DE SAN JUAN",73854,false]
["VALLE DEL CAUCA","VALLE DEL CAUCA",76999,false]
["PUTUMAYO","VALLE DEL GUAMUEZ",86865,false]
["CESAR","VALLEDUPAR",20001,false]
["ANTIOQUIA","VALPARAISO - ANTIOQUIA",5856,false]
["CAQUETA","VALPARAISO",18860,false]
["VAUPES","VAUPES",97999,false]
["ANTIOQUIA","VEGACHI",5858,false]
["SANTANDER","VELEZ",68861,false]
["TOLIMA","VENADILLO",73861,false]
["ANTIOQUIA","VENECIA - ANTIOQUIA",5861,false]
["CUNDINAMARCA","VENECIA - CUNDINAMARCA",25506,false]
["BOYACA","VENTAQUEMADA",15861,false]
["CUNDINAMARCA","VERGARA",25862,false]
["VALLE DEL CAUCA","VERSALLES",76863,false]
["SANTANDER","VETAS",68867,false]
["CUNDINAMARCA","VIANI",25867,false]
["VICHADA","VICHADA",99999,false]
["CALDAS","VICTORIA",17867,false]
["ANTIOQUIA","VIGIA DEL FUERTE",5873,false]
["VALLE DEL CAUCA","VIJES",76869,false]
["N. DE SANTANDER","VILLA CARO",54871,false]
["BOYACA","VILLA DE LEYVA",15407,false]
["CUNDINAMARCA","VILLA DE SAN DIEGO DE UBATE",25843,false]
["N. DE SANTANDER","VILLA DEL ROSARIO",54874,false]
["CAUCA","VILLA RICA",19845,false]
["PUTUMAYO","VILLAGARZON",86885,false]
["CUNDINAMARCA","VILLAGOMEZ",25871,false]
["TOLIMA","VILLAHERMOSA",73870,false]
["CALDAS","VILLAMARIA",17873,false]
["BOLIVAR","VILLANUEVA - BOLIVAR",13873,false]
["LA GUAJIRA","VILLANUEVA - LA GUAJIRA",44874,false]
["SANTANDER","VILLANUEVA - SANTANDER",68872,false]
["CASANARE","VILLANUEVA",85440,false]
["CUNDINAMARCA","VILLAPINZON",25873,false]
["TOLIMA","VILLARRICA",73873,false]
["META","VILLAVICENCIO",50001,false]
["HUILA","VILLAVIEJA",41872,false]
["CUNDINAMARCA","VILLETA",25875,false]
["CUNDINAMARCA","VIOTA",25878,false]
["BOYACA","VIRACACHA",15879,false]
["META","VISTAHERMOSA",50711,false]
["CALDAS","VITERBO",17877,false]
["CUNDINAMARCA","YACOPI",25885,false]
["NARIÑO","YACUANQUER",52885,false]
["HUILA","YAGUARA",41885,false]
["ANTIOQUIA","YALI",5885,false]
["ANTIOQUIA","YARUMAL",5887,false]
["VAUPES","YAVARATE",97889,false]
["ANTIOQUIA","YOLOMBO",5890,false]
["ANTIOQUIA","YONDO",5893,false]
["CASANARE","YOPAL",85001,false]
["VALLE DEL CAUCA","YOTOCO",76890,false]
["VALLE DEL CAUCA","YUMBO",76892,false]
["BOLIVAR","ZAMBRANO",13894,false]
["SANTANDER","ZAPATOCA",68895,false]
["MAGDALENA","ZAPAYAN",47960,false]
["ANTIOQUIA","ZARAGOZA",5895,false]
["VALLE DEL CAUCA","ZARZAL",76895,false]
["BOYACA","ZETAQUIRA",15897,false]
["CUNDINAMARCA","ZIPACON",25898,false]
["CUNDINAMARCA","ZIPAQUIRA",25899,false]
["MAGDALENA","ZONA BANANERA",47980,false]
[]
[]
[]
[]
[]
["SGP",103]
["RECURSOS CAR",104]
["RECURSOS DE LA NACION /AUDIENCIAS PUBLICAS",105]
["RECURSOS PROPIOS / OTROS RECURSOS",106]
["REGALIAS DIRECTAS",107]
["REGALIAS-FONDO DESARROLLO REGIONAL",117]
["REGALIAS -FONDO COMPENSACION REGIONAL ",118]
["RECURSOS NACION ESTRATEGICOS",119]
["CONTRATO PLAN SGP",303]
["CONTRATO  PLAN - RECURSOS NACIÒN",305]
["RECURSOS BID NACION",405]
["RECURSOS CRÉDITO",500]